Workbook

Sheet Instructions & Definitions
B10: *Disclaimer* This fee calculator is only to be used for estimation purposes, actual fees will be assessed at the time the permit application is submitted
B12: The output of this calculator is only as good as the input, if fields are missing or incorrect, the estimate will be further off from expected assessed fees.
B15: Step 1: Click the Start new Construction/Remodel Estimation button to start

Sheet Plan and Building Inputs
B2: Step 2: Enter the detail of the construction project to estimate the city fees, enter data only in grey cells
B4: Type | D4: Drop down
B5: Sub-Type
B6: Change of Use?
B7: Sub-Type City of Fort Collins
B9: Stock Plan? | D9: Drop down
B10: New Development?
B11: Building Square Ft | D11: Enter Numeric Value
B12: Finished Square Ft
B13: Number of Bedrooms
B14: Number of Units
B15: Valuation | E15: =IF(C15<'Minimum Project Values'!H31,1,0) -> 0
B16: Lot Square Ft | D16: Water, Waste Water and Stormwater fees are based on the details of the Square footage of the lot. If you are unsure of the break out, put the total lot square footage in both "Lot Square Ft" and "Building Ground Level Sq Ft"
B17: Building Ground Level Sq Ft
B18: ROW Square Ft
B19: Parking/Drives/Walks/Patios Sq Ft
B20: Gravel Sq Ft
B21: Private Open Space (Sq ft)
B22: Public Open Space (Sq ft)
B23: Land use square footage check | C23: =IF((C22+C21+C19+C20+C18+C17)=C16, "OK", "Update Lot use sq ft") -> OK
B24: Water Tap Size | D24: 3/4 inch is most common residential size
B25: Water Meters Needed | D25: Used for Multi-family
B26: Non-resdiential Water gpd peak demand
B27: Non-residential Wastewater BOD (mg/L)
B28: Non-residential Wastewater TSS (mg/L)
B29: Power Phase
B30: Electrical Amps
B31: Requested Voltage
B32: School District | D32: *South of Trilby = Big Thompson
B34: Options:
B35: Garage Square Feet | C35: 0
B36: Pole Barn (Post Frame Const) Square Feet | C36: 0
B37: Carport Square Feet | C37: 0
B38: Fabric Carport Square Feet | C38: 0
B39: Metal Carport Square Feet | C39: 0
B40: Shed Square Feet | C40: 0
B41: Patio Cover/Deck Square Feet | C41: 0
B42: Pergola/Sunshade Square Feet | C42: 0
B43: Basement (Finished) Square Feet | C43: 0
B44: Basement (Unfinished) Square Feet | C44: 0
B45: Garden Level (Finished) Square Feet | C45: 0
B46: Garden Level (Unfinished) | C46: 0
B47: Finishing Existing Basement | C47: 0
B49: Step 3: If you don’t have any public infrastructure construction, click "Calculate Fees". Otherwise Click "Continue to Inspection Fees"
Q61: School District | T61: Valuation
Q62: Landscape Escrow | S62: Police Capital Exp. (Res) | T62: Based on Dwelling Sq Ft.
Q63: County Sales/Use Tax | S63: Fire Capital Exp. (Res) | T63: Based on Dwelling Sq Ft.
Q64: Contractor Licensing | S64: Parkland: Community | T64: Based on Dwelling Sq Ft.
Q65: Bld Permit/Re-Inspection | S65: Parkland: Neighborhood | T65: Based on Dwelling Sq Ft.
Q66: Plan Check Fee | S66: General Govt. Capt. Exp. (Res) | T66: Based on Dwelling Sq Ft.
Q67: Fire Capital Expansion | S67: Street Oversizing: Res-Detached | T67: Flat Fee
Q68: City Sales/Use Tax | S68: Stormwater Dev. Review | T68: Based on Lot Sq Ft.
Q69: Parkland: Neighborhood | S69: Stormwater PIF | T69: Based on Lot Sq Ft.
Q70: Larimer County Reg. Road | S70: Water PIF | T70: Based on Lot Sq Ft.
Q71: Transportation Capital Expansion | S71: Wasterwater | T71: Flat Fee
Q72: Street voersizing: Contrib & Aid of Constr | S72: Elec: City Sales Tax | T72: Figured by Utilities
Q73: Elec: City Sales Tax | S73: Elec: Comm. Revenue | T73: Figured by Utilities
Q74: Elec: City Sales Tax | S74: Elec: PILOTS | T74: Figured by Utilities
Q75: Elec: Comm. Revenue | S75: Elec: Secondary Service (Service B) | T75: Figured by Utilities
Q76: Elec: PILOTS | S76: Elec: Temp Pedestal | T76: Figured by Utilities
Q77: Elec: Secondary Service (Service B) | S77: Building Permit Fee w/Subs | T77: Based on Permit Value
Q78: Elec: Temp Pedestal | S78: Plan Review Fee | T78: Based on Permit Value
Q79: Construction Water | S79: FF Permit Fee (Flat Fee) | T79: Flat Fee
Q80: Water 6% PILOT Fees | S80: Plan Check Fee w/Stock Plan | T80: $1/$1000
Q81: Water PIF | S81: City Sales/Use Tax | T81: 50% of value * Tax Rate
Q82: Water Dev Review | S82: Larimer County Reg. Road (Res Detached) | T82: Flat Fee
Q83: Water Right | S83: County Sales/Use Tax | T83: 50% of value * Tax Rate
Q84: Water Meter | S84: Poudre School District (1-4 Units) | T84: Flat Fee
Q85: Sewer PIF
Q86: Sewer Dev Rev
Q87: Erosion Escrow
Q88: Floodplain Use Permit
Q89: Stomeater Dev Review
Q90: Stormwater PIF
Q91: Gen. Govt Capital Exp
Q92: Police Capital Expansion
Q93: Parkland: Community
Q94: Contractor Licensing - Engineering
Q95: Transporation Dev Review
Q96: Trust Account Def Revenue

Sheet Engineering Inspection Inputs
B2: Step 4: Enter data to calculate estimated Public Infrastructure Inspection Fees
A4: Description (List all Public and applicable *private improvements) | B4: Units of Measure | C4: Estimated Quantity (provided by the project engineer) | D4: Infrastructure construction cost per unit | E4: Total Estimated Infrastructure Cost | F4: Inspection Fee per unit (provided by the City) | G4: Total Inspection Fee
A5: Sanitary Sewer System
A6: Sanitary Sewer Main | B6: L.F. | C6: 0 | D6: 0 | E6: =C6*D6 -> 0 | F6: 0.7 | G6: =IF(C6=0,0,IF(C6<=100,70,((C6-100)*F6)+70)) -> 0
A7: Manhole | B7: EACH | C7: 0 | D7: 0 | E7: =C7*D7 -> 0 | F7: 103 | G7: =C7*F7 -> 0
A8: Sewer Service Line Stub | B8: EACH | C8: 0 | D8: 0 | E8: =C8*D8 -> 0 | F8: 70 | G8: =C8*F8 -> 0
A9: Sewer Connection/Disconnect | B9: EACH | C9: 0 | D9: 0 | E9: =C9*D9 -> 0 | F9: 35 | G9: =C9*F9 -> 0
E10: Sanitary Sewer Inspection Fees | G10: =SUM(G6:G9) -> 0
A11: Water System
A12: Water Main | B12: L.F. | C12: 0 | D12: 0 | E12: =C12*D12 -> 0 | F12: 0.7 | G12: =IF(C12=0,0,IF(C12<=100,70,((C12-100)*F12)+70)) -> 0
A13: Water Service Line Stub | B13: EACH | C13: 0 | D13: 0 | E13: 0 | F13: 70 | G13: =C13*F13 -> 0
A14: Fire Hydrant | B14: EACH | C14: 0 | D14: 0 | E14: 0 | F14: 70 | G14: 0
A15: Valves | B15: EACH | C15: 0 | D15: 0 | E15: 0 | F15: 70 | G15: 0
A16: Meter Pit (3/4" ) | B16: EACH | C16: 0 | D16: 0 | E16: 0 | F16: 35 | G16: 0
A17: Meter Pit (1 1/2") | B17: EACH | C17: 0 | D17: 0 | E17: 0 | F17: 35 | G17: 0
A18: Meter Pit (3" ) | B18: EACH | C18: 0 | D18: 0 | E18: 0 | F18: 35 | G18: 0
A19: Water Main (Fire Line)** | B19: L.F. | C19: 0 | D19: 0 | E19: 0 | F19: 0.7 | G19: =IF(C19=0,0,IF(C19<=100,70,((C19-100)*F19)+70)) -> 0
A20: Water Fitting ( Bend, Tee, Cross ) | B20: EACH | C20: 0 | D20: 0 | E20: 0 | F20: 35 | G20: =C20*F20 -> 0
A21: Fireline Fitting ( Bend, Tee, Cross ) | B21: EACH | C21: 0 | D21: 0 | E21: 0 | F21: 35 | G21: =C21*F21 -> 0
A22: Water Connection/Disconnect | B22: EACH | C22: 0 | D22: 0 | E22: 0 | F22: 35 | G22: =C22*F22 -> 0
E23: Water Inspection Fees | G23: =SUM(G12:G22) -> 0
A24: Public Storm Sewer System
A25: Reinforced Concrete Pipe | B25: L.F. | C25: 0 | D25: 0 | E25: =C25*D25 -> 0 | F25: 0.7 | G25: =IF(C25=0,0,IF(C25<=100,70,((C25-100)*F25)+70)) -> 0
A26: Underdrain | B26: L.F. | C26: 0 | D26: 0 | E26: 0 | F26: 0.7 | G26: =IF(C26=0,0,IF(C26<=100,70,((C26-100)*F26)+70)) -> 0
A27: Concrete Headwall | B27: L.F. | C27: 0 | D27: 0 | E27: 0 | F27: 3.5 | G27: =IF((C27*F27)=0,0,IF((C27*F27)<=75,75,IF((C27*F27)>75,(C27*F27)))) -> 0
A28: Water Quality Outlet Structure | B28: C.Y. | C28: 0 | D28: 0 | E28: 0 | F28: 3.5 | G28: =IF((C28*F28)=0,0,IF((C28*F28)<=75,75,IF((C28*F28)>75,(C28*F28)))) -> 0
A29: All Inlet Types | B29: EACH | C29: 0 | D29: 0 | E29: 0 | F29: 103 | G29: =C29*F29 -> 0
A30: Manhole | B30: EACH | C30: 0 | D30: 0 | E30: 0 | F30: 103 | G30: =C30*F30 -> 0
E31: Public Storm Inspection Fees | G31: =SUM(G25:G30) -> 0
A32: Street System/ Trench
A33: Grading | B33: L.S. | C33: 0 | D33: 0 | E33: =C33*D33 -> 0
A34: Asphalt Pavement | B34: SY | C34: 0 | D34: 0 | E34: 0 | F34: 0.45 | G34: =IF(C34=0,0,IF(C34<=50,70,((C34-50)*F34)+70)) -> 0
A35: Concrete Pavement | B35: SY | C35: 0 | D35: 0 | E35: 0 | F35: 0.45 | G35: 0
A36: Colored Concrete Pavement | B36: SY | C36: 0 | D36: 0 | E36: 0 | F36: 0.45 | G36: 0
A37: Curb & Gutter | B37: L.F. | C37: 0 | D37: 0 | E37: 0 | F37: 1 | G37: 0
A38: Sidewalk *** | B38: L.F. | C38: 0 | D38: 0 | E38: 0 | F38: 1 | G38: 0
A39: Pedestrian Ramps | B39: L.F. | C39: 0 | D39: 0 | E39: 0 | F39: 1 | G39: 0
A40: Fire Access Grass Crete | B40: S.Y. | C40: 0 | D40: 0 | E40: 0 | F40: 0.45 | G40: =IF(C40=0,0,IF(C40<=300,103,((C40-300)*F40)+103)) -> 0
A41: Gutter Pan | B41: S.Y. | C41: 0 | D41: 0 | E41: 0 | F41: 0.45 | G41: =IF(C41=0,0,IF(C41<=300,103,((C41-300)*F41)+103)) -> 0
A42: Drive Approach | B42: S.Y. | C42: 0 | D42: 0 | E42: 0 | F42: 0.45 | G42: =IF(C42=0,0,IF(C42<=300,103,((C42-300)*F42)+103)) -> 0
A43: Storm Trench | B43: L.F. | C43: 0 | D43: 0 | E43: 0 | F43: 0.7 | G43: =IF(C43=0,0,IF(C43<=100,70,((C43-100)*F43)+70)) -> 0
A44: SewerTrench | B44: L.F. | C44: 0 | D44: 0 | E44: 0 | F44: 0.7 | G44: =IF(C44=0,0,IF(C44<=100,70,((C44-100)*F44)+70)) -> 0
A45: Water Trench | B45: L.F. | C45: 0 | D45: 0 | E45: 0 | F45: 0.7 | G45: =IF(C45=0,0,IF(C45<=100,70,((C45-100)*F45)+70)) -> 0
E46: Street System Inspection Fees | G46: =SUM(G33:G45) -> 0
A47: Excavation Permit
A48: Application | B48: L.S. | C48: 0 | D48: 0 | G48: =IF(C48=0, 0, 30) -> 0
A49: Pavement | B49: S.Y. | C49: 0 | D49: 0 | E49: =C49*D49 -> 0 | F49: 0.45 | G49: =IF(C49=0,0,IF(C49<=300,103,((C49-300)*F49)+103)) -> 0
A50: Potholing | B50: E.A. | C50: 0 | D50: 0 | E50: =C50*D50 -> 0 | F50: 10 | G50: =SUM(C50*F50) -> 0
A51: Pavement Impact Fees | B51: S.F. | C51: 0 | D51: 0 | G51: =IF(C52<=5,IF(C51=0,0,IF(C51<=100,(C51*3.85),IF(C51<=500,(C51*2.75),IF(C51<=3000,(C51*2.2),IF(C51>3000,(C51*1.65))))))*3,IF(C51=0,0,IF(C51<=100,(C51*3.85),IF(C51<=500,(C51*2.75),IF(C51<=3000,(C51*2.2),IF(C51>3000,(C51*1.65))))))) -> 0
A52: Pavement Age (years) | C52: 0 | D52: 0
E53: Excavation Permit Fees | G53: =SUM(G48:G51) -> 0
E55: TOTAL INSPECTION FEES | G55: =SUM(G10+G23+G31+G46+G53) -> 0
B57: TOTAL PUBLIC INFRASTRUCTURE COST | E57: =SUM(E5:E52) -> 0
A61: * PRIVATE IMPROVEMENTS REQUIRING CITY INSPECTIONS WILL NEED TO BE INCLUDED. HOWEVER PRIVATE IMPROVEMENTS WILL NOT BE INCLUDED
A62: IN THE TOTAL INFRASTRUCTURE COST FOR BONDING.
A63: ** INCLUDES TRENCH PRICE
A64: *** SIDEWALK LENGTH IS INCREASED DUE TO OVERSIZE WIDTH. STANDARD SIDEWALK INSPECTION FEE WIDTH IS 4.5'

Sheet Calculated Fees
B2: Fee Type | C2: Amount | D2: Links for additional Info
B3: Police Capital Exp | C3: =+'Capital Expansion'!P14 -> 0 | D3: https://www.fcgov.com/finance/capitalexpansion.php | E3: https://www.fcgov.com/developmentreview/fees.php
B4: Fire Capital Exp | C4: =+'Capital Expansion'!O14 -> 0 | D4: https://www.fcgov.com/finance/capitalexpansion.php
B5: Parkland: Community | C5: =+'Capital Expansion'!N14 -> 0 | D5: https://www.fcgov.com/finance/capitalexpansion.php
B6: Parkland: Neighborhood | C6: =+'Capital Expansion'!M14 -> 0 | D6: https://www.fcgov.com/finance/capitalexpansion.php
B7: General Govt. Capt. Exp. | C7: =+'Capital Expansion'!Q14 -> 0 | D7: https://www.fcgov.com/finance/capitalexpansion.php
B8: Transportation Capital Expansion | C8: =IF('Plan and Building Inputs'!C6 = "No", 0,'Capital Expansion'!R14) -> 0 | D8: https://www.fcgov.com/finance/capitalexpansion.php
B9: Plan Check Fee | C9: =IF('Without Subs (OTC Permits)'!C19>0,'Without Subs (OTC Permits)'!G19,(IF('Plan and Building Inputs'!C9="Yes",ROUNDUP('Plan and Building Inputs'!C15/1000,0),'With Subs (Plan & Building)'!G17))) ->  | D9: https://www.fcgov.com/building/permit-fees-and-taxes
B10: Building Permit Fee | C10: =IF('Without Subs (OTC Permits)'!C19>0,'Without Subs (OTC Permits)'!F19,'With Subs (Plan & Building)'!H15) ->  | D10: https://www.fcgov.com/building/permit-fees-and-taxes
B11: Water PIF | C11: =+'Water WW'!P18 -> 0 | D11: https://www.fcgov.com/utilities/business/builders-and-developers/plant-investment-development-fees
B12: Water Meter | C12: =+'Water WW'!S18 -> 0 | D12: https://www.fcgov.com/utilities/business/builders-and-developers/plant-investment-development-fees
B13: WSR | C13: =+'Water WW'!R18 -> 0 | D13: https://www.fcgov.com/utilities/business/builders-and-developers/plant-investment-development-fees
B14: Water Dev Rev | C14: =+'Water WW'!T18 -> 0 | D14: https://www.fcgov.com/utilities/business/builders-and-developers/plant-investment-development-fees
B15: Wasterwater PIF | C15: =+'Water WW'!U18 -> 0 | D15: https://www.fcgov.com/utilities/business/builders-and-developers/plant-investment-development-fees
B16: Wasterwater Dev Rev | C16: =+'Water WW'!V18 -> 0 | D16: https://www.fcgov.com/utilities/business/builders-and-developers/plant-investment-development-fees
B17: Sewer PIF | C17: =IF(AND('Plan and Building Inputs'!$C$4="Residential",'Plan and Building Inputs'!$C$5="New"),Water!I16,0) -> 0 | D17: https://www.fcgov.com/utilities/business/builders-and-developers/plant-investment-development-fees
B18: Stormwater PIF | C18: =+Stormwater!T4 -> 0 | D18: https://www.fcgov.com/utilities/business/builders-and-developers/plant-investment-development-fees
B19: Stormwater Dev. Review | C19: =+Stormwater!U4 -> 0 | D19: https://www.fcgov.com/utilities/business/builders-and-developers/plant-investment-development-fees
B20: Elec: City Sales Tax | C20: =+C21*0.0385 -> 0 | D20: https://www.fcgov.com/utilities/business/builders-and-developers/plant-investment-development-fees
B21: Elec: Comm. Revenue | C21: =IF(AND('Plan and Building Inputs'!C5="New",Electric!B32>0),'Comm Revenue Elec Fee'!D36,0) -> 0 | D21: https://www.fcgov.com/utilities/business/builders-and-developers/plant-investment-development-fees
B22: Elec: PILOTS | C22: =+C21*0.06 -> 0 | D22: https://www.fcgov.com/utilities/business/builders-and-developers/plant-investment-development-fees
B23: Elec: Secondary Service | C23: =IF(AND('Plan and Building Inputs'!C5="New",Electric!B32>0),Electric!B22,0) -> 0 | D23: https://www.fcgov.com/utilities/business/builders-and-developers/plant-investment-development-fees
B24: Elec: Temp Pedestal | C24: =IF(AND('Plan and Building Inputs'!C5="New",Electric!B32>0),'Comm Revenue Elec Fee'!D38,0) -> 0 | D24: https://www.fcgov.com/utilities/business/builders-and-developers/plant-investment-development-fees
B25: City Sales/Use Tax | C25: =IF('Without Subs (OTC Permits)'!C19>0,'Without Subs (OTC Permits)'!D19,'Plan and Building Inputs'!C15/2*0.0385) -> 0 | D25: https://www.fcgov.com/building/permit-fees-and-taxes
B26: County Sales/Use Tax | C26: =IF('Without Subs (OTC Permits)'!C19>0,'Without Subs (OTC Permits)'!E19,'Plan and Building Inputs'!C15/2*0.008) -> 0 | D26: https://www.fcgov.com/building/permit-fees-and-taxes
B27: School District Impact Fee | C27: =+Schools!H6 -> 0 | D27: https://www.fcgov.com/developmentreview/fees.php
B28: Larimer County Reg. Road | C28: =IFERROR(IF('Plan and Building Inputs'!C6="No", 0, 'County TCEF'!O15),0) -> 0 | D28: https://www.larimer.org/sites/default/files/2018_capital_expansion_fees-fees_in_lieu_of_handout.pdf
B29: Electric Fees | C29: =+Electric!Q10 -> 0 | D29: https://www.fcgov.com/utilities/business/builders-and-developers/plant-investment-development-fees
B30: FF Permit Fee (Flat Fee) | D30: https://www.fcgov.com/building/permit-fees-and-taxes
B33: Total Permit Fees | C33: =_xlfn.AGGREGATE(9,6,C3:C30) -> 0
B34: Total Engineering Inspection Fees | C34: =+'Engineering Inspection Inputs'!G55 -> 0
B35: Total Cost | C35: =+C34+C33 -> 0
B37: Engineering Escrow Deposit | C37: =+'Engineering Inspection Inputs'!E57 -> 0 | D37: *Deposit will be returned after final

Sheet Without Subs (OTC Permits) (hidden)
A2: Type | B2: Sub-Type City of Fort Collins | C2: Project Value | D2: Sales & Use Tax | E2: County Sales & Use Tax | F2: Building Permit Fee | G2: Plan Check Fee | H2: Total Fee
A3: ='Plan and Building Inputs'!$C$4 -> 0 | B3: Fireplace | C3: =IF(B3='Plan and Building Inputs'!$C$7,'Plan and Building Inputs'!$C$15,0) -> 0 | D3: =+C3*(0.0385)/2 -> 0 | E3: =+C3/2*0.0055 -> 0 | F3: =IF(C3=0,0,(IF(C3<=500,25,IF(AND(C3>500,C3<=2000),25+ROUNDUP((C3-500)/100,0)*2.75,IF(AND(C3>2000,C3<=25000),66.25+ROUNDUP((C3-2000)/1000,0)*10.25,IF(AND(C3>25000,C3<=50000),302+ROUNDUP((C3-25000)/1000,0)*8.5,IF(AND(C3>50000,C3<=100000),514.5+ROUNDUP((C3-50000)/1000,0)*6,IF(AND(C3>100000,C3<=500000),814.5+ROUNDUP((C3-100000)/1000,0)*4,IF(AND(C3>500000,C3<=1000000),2414.5+ROUNDUP((C3-500000)/1000,0)*3.5,IF(AND(C3>1000000,C3<=10000000),4164.5+ROUNDUP((C3-1000000)/1000,0)*2.5,26664.5+ROUNDUP((C3-10000000)/1000,0))))))))))) -> 0 | G3: =IF(AND(A3="Commercial (Single Phase)"),0,IF(AND(C3>0,A3="Residential",IFERROR(MATCH(B3,$A$23:$A$28,0),0)),25,IF(C3<=3000,0,IF(AND(C3>3000,C3<=25000),(66.25+ROUNDUP((C3-2000)/1000,0)*10.25)*0.65,IF(AND(C3>25000,C3<=50000),(302+ROUNDUP((C3-25000)/1000,0)*8.5)*0.65,IF(AND(C3>50000,C3<=100000),(514.5+ROUNDUP((C3-50000)/1000,0)*6)*0.65,IF(AND(C3>100000,C3<=500000),(814.5+ROUNDUP((C3-100000)/1000,0)*4)*0.65,IF(AND(C3>500000,C3<=1000000),(2414.5+ROUNDUP((C3-500000)/1000,0)*3.5)*0.65,IF(AND(C3>1000000,C3<=10000000),(4164.5+ROUNDUP((C3-1000000)/1000,0)*2.5)*0.65,(26664.5+ROUNDUP((C3-10000000)/1000,0))*0.65))))))))) -> 0 | H3: =+D3+F3+G3 -> 0
A4: ='Plan and Building Inputs'!$C$4 -> 0 | B4: Air Conditioning | C4: =IF(B4='Plan and Building Inputs'!$C$7,'Plan and Building Inputs'!$C$15,0) -> 0 | D4: =+C4*(0.0385)/2 -> 0 | E4: =+C4/2*0.0055 -> 0 | F4: =IF(C4=0,0,(IF(C4<=500,25,IF(AND(C4>500,C4<=2000),25+ROUNDUP((C4-500)/100,0)*2.75,IF(AND(C4>2000,C4<=25000),66.25+ROUNDUP((C4-2000)/1000,0)*10.25,IF(AND(C4>25000,C4<=50000),302+ROUNDUP((C4-25000)/1000,0)*8.5,IF(AND(C4>50000,C4<=100000),514.5+ROUNDUP((C4-50000)/1000,0)*6,IF(AND(C4>100000,C4<=500000),814.5+ROUNDUP((C4-100000)/1000,0)*4,IF(AND(C4>500000,C4<=1000000),2414.5+ROUNDUP((C4-500000)/1000,0)*3.5,IF(AND(C4>1000000,C4<=10000000),4164.5+ROUNDUP((C4-1000000)/1000,0)*2.5,26664.5+ROUNDUP((C4-10000000)/1000,0))))))))))) -> 0 | G4: 0 | H4: =+D4+F4+G4 -> 0
A5: ='Plan and Building Inputs'!$C$4 -> 0 | B5: Furnace | C5: =IF(B5='Plan and Building Inputs'!$C$7,'Plan and Building Inputs'!$C$15,0) -> 0 | D5: =+C5*(0.0385)/2 -> 0 | E5: =+C5/2*0.0055 -> 0 | F5: 0 | G5: 0 | H5: 0
A6: ='Plan and Building Inputs'!$C$4 -> 0 | B6: Mechanical | C6: =IF(B6='Plan and Building Inputs'!$C$7,'Plan and Building Inputs'!$C$15,0) -> 0 | D6: =+C6*(0.0385)/2 -> 0 | E6: =+C6/2*0.0055 -> 0 | F6: 0 | G6: 0 | H6: 0
A7: ='Plan and Building Inputs'!$C$4 -> 0 | B7: Mobile Home | C7: =IF(B7='Plan and Building Inputs'!$C$7,'Plan and Building Inputs'!$C$15,0) -> 0 | D7: =+C7*(0.0385)/2 -> 0 | E7: =+C7/2*0.0055 -> 0 | F7: 0 | G7: 0 | H7: 0
A8: ='Plan and Building Inputs'!$C$4 -> 0 | B8: Mobile Home Installation | C8: =IF(B8='Plan and Building Inputs'!$C$7,'Plan and Building Inputs'!$C$15,0) -> 0 | D8: 0 | E8: 0 | F8: =IF(C8>0,25,0) -> 0 | G8: 0 | H8: =+D8+F8+G8 -> 0 | I8: Flat fee on Mobile home installation
A9: ='Plan and Building Inputs'!$C$4 -> 0 | B9: Plumbing | C9: =IF(B9='Plan and Building Inputs'!$C$7,'Plan and Building Inputs'!$C$15,0) -> 0 | D9: =+C9*(0.0385)/2 -> 0 | E9: =+C9/2*0.0055 -> 0 | F9: =IF(C9=0,0,(IF(C9<=500,25,IF(AND(C9>500,C9<=2000),25+ROUNDUP((C9-500)/100,0)*2.75,IF(AND(C9>2000,C9<=25000),66.25+ROUNDUP((C9-2000)/1000,0)*10.25,IF(AND(C9>25000,C9<=50000),302+ROUNDUP((C9-25000)/1000,0)*8.5,IF(AND(C9>50000,C9<=100000),514.5+ROUNDUP((C9-50000)/1000,0)*6,IF(AND(C9>100000,C9<=500000),814.5+ROUNDUP((C9-100000)/1000,0)*4,IF(AND(C9>500000,C9<=1000000),2414.5+ROUNDUP((C9-500000)/1000,0)*3.5,IF(AND(C9>1000000,C9<=10000000),4164.5+ROUNDUP((C9-1000000)/1000,0)*2.5,26664.5+ROUNDUP((C9-10000000)/1000,0))))))))))) -> 0 | G9: =IF(AND(A9="Commercial (Single Phase)"),0,IF(AND(C9>0,A9="Residential",IFERROR(MATCH(B9,$A$23:$A$28,0),0)),25,IF(C9<=3000,0,IF(AND(C9>3000,C9<=25000),(66.25+ROUNDUP((C9-2000)/1000,0)*10.25)*0.65,IF(AND(C9>25000,C9<=50000),(302+ROUNDUP((C9-25000)/1000,0)*8.5)*0.65,IF(AND(C9>50000,C9<=100000),(514.5+ROUNDUP((C9-50000)/1000,0)*6)*0.65,IF(AND(C9>100000,C9<=500000),(814.5+ROUNDUP((C9-100000)/1000,0)*4)*0.65,IF(AND(C9>500000,C9<=1000000),(2414.5+ROUNDUP((C9-500000)/1000,0)*3.5)*0.65,IF(AND(C9>1000000,C9<=10000000),(4164.5+ROUNDUP((C9-1000000)/1000,0)*2.5)*0.65,(26664.5+ROUNDUP((C9-10000000)/1000,0))*0.65))))))))) -> 0 | H9: 0
A10: ='Plan and Building Inputs'!$C$4 -> 0 | B10: Re-Roof | C10: =IF(B10='Plan and Building Inputs'!$C$7,'Plan and Building Inputs'!$C$15,0) -> 0 | D10: 0 | E10: 0 | F10: 0 | G10: 0 | H10: 0
A11: ='Plan and Building Inputs'!$C$4 -> 0 | B11: Sprinkler | C11: =IF(B11='Plan and Building Inputs'!$C$7,'Plan and Building Inputs'!$C$15,0) -> 0 | D11: 0 | E11: 0 | F11: 0 | G11: 0 | H11: 0
A12: ='Plan and Building Inputs'!$C$4 -> 0 | B12: Water Heater | C12: =IF(B12='Plan and Building Inputs'!$C$7,'Plan and Building Inputs'!$C$15,0) -> 0 | D12: 0 | E12: 0 | F12: 0 | G12: 0 | H12: 0
A13: ='Plan and Building Inputs'!$C$4 -> 0 | B13: Sign | C13: =IF(B13='Plan and Building Inputs'!$C$7,'Plan and Building Inputs'!$C$15,0) -> 0 | D13: 0 | E13: 0 | F13: 0 | G13: 0 | H13: =+D13+F13+G13 -> 0
A14: ='Plan and Building Inputs'!$C$4 -> 0 | B14: Shed | C14: =IF(B14='Plan and Building Inputs'!$C$7,'Plan and Building Inputs'!$C$15,0) -> 0 | D14: 0 | E14: 0 | F14: 0 | G14: 0 | H14: =+D14+F14+G14 -> 0
A15: ='Plan and Building Inputs'!$C$4 -> 0 | B15: Electrical | C15: =IF(B15='Plan and Building Inputs'!$C$7,'Plan and Building Inputs'!$C$15,0) -> 0 | D15: 0 | E15: 0 | F15: =IF(C15=0,0,(IF(C15<=500,25,IF(AND(C15>500,C15<=2000),25+ROUNDUP((C15-500)/100,0)*2.75,IF(AND(C15>2000,C15<=25000),66.25+ROUNDUP((C15-2000)/1000,0)*10.25,IF(AND(C15>25000,C15<=50000),302+ROUNDUP((C15-25000)/1000,0)*8.5,IF(AND(C15>50000,C15<=100000),514.5+ROUNDUP((C15-50000)/1000,0)*6,IF(AND(C15>100000,C15<=500000),814.5+ROUNDUP((C15-100000)/1000,0)*4,IF(AND(C15>500000,C15<=1000000),2414.5+ROUNDUP((C15-500000)/1000,0)*3.5,IF(AND(C15>1000000,C15<=10000000),4164.5+ROUNDUP((C15-1000000)/1000,0)*2.5,26664.5+ROUNDUP((C15-10000000)/1000,0))))))))))) -> 0 | G15: 0 | H15: =+D15+F15+G15 -> 0
A16: ='Plan and Building Inputs'!$C$4 -> 0 | B16: Demolition | C16: =IF(B16='Plan and Building Inputs'!$C$7,'Plan and Building Inputs'!$C$15,0) -> 0 | D16: 0 | E16: 0 | F16: =IF(C16>0,50,IF(C16=0,0,(IF(C16<=500,25,IF(AND(C16>500,C16<=2000),25+ROUNDUP((C16-500)/100,0)*2.75,IF(AND(C16>2000,C16<=25000),66.25+ROUNDUP((C16-2000)/1000,0)*10.25,IF(AND(C16>25000,C16<=50000),302+ROUNDUP((C16-25000)/1000,0)*8.5,IF(AND(C16>50000,C16<=100000),514.5+ROUNDUP((C16-50000)/1000,0)*6,IF(AND(C16>100000,C16<=500000),814.5+ROUNDUP((C16-100000)/1000,0)*4,IF(AND(C16>500000,C16<=1000000),2414.5+ROUNDUP((C16-500000)/1000,0)*3.5,IF(AND(C16>1000000,C16<=10000000),4164.5+ROUNDUP((C16-1000000)/1000,0)*2.5,26664.5+ROUNDUP((C16-10000000)/1000,0)))))))))))) -> 0 | G16: 0 | H16: =+D16+F16+G16 -> 0 | I16: Flat Fee on Demoltion
A17: ='Plan and Building Inputs'!$C$4 -> 0 | B17: Sales Trailer | C17: =IF(B17='Plan and Building Inputs'!$C$7,'Plan and Building Inputs'!$C$15,0) -> 0 | D17: 0 | E17: 0 | F17: 0 | G17: 0 | H17: 0
B19: Total OTC Permits | C19: =SUM(C3:C18) -> 0 | D19: =SUMIFS(D3:D17, $C$3:$C$17, "<>") -> 0 | E19: =SUMIFS(E3:E17, $C$3:$C$17, "<>") -> 0 | F19: =SUMIFS(F3:F17, $C$3:$C$17, "<>") -> 0 | G19: =SUMIFS(G3:G17, $C$3:$C$17, "<>") -> 0 | H19: =SUMIFS(H3:H17, $C$3:$C$17, "<>") -> 0
A22: Plan Check Fee $25
A23: Sprinkler
A24: Water Heater
A25: Fireplace
A26: Air Conditioning
A27: Furnace
A28: Electrical
B37: https://www.fcgov.com/building/permit-fees-and-taxes

Sheet With Subs (Plan & Building) (hidden)
A2: Value Plan | C2: Total Valuation | D2: Plan Review | E2: Building Permit Fee w/ Subs | F2: Value | G2: Plan Fee | H2: Permit Fee w/ Subs
A4: =+'Plan and Building Inputs'!$C$15 -> 0 | C4: $1 to $500 | D4: None | E4: 25 | F4: =AND(A4<=500,'Plan and Building Inputs'!$C$7="Mobile Home") -> FALSE | G4: 0 | H4: 25
A5: =+'Plan and Building Inputs'!$C$15 -> 0 | C5: $501 to $2,000 | D5: None | E5: $25 for the first $500 plus $2.75 for each additional $100 or fraction thereof to and including $2,000 | F5: =AND(A5>501, A5<=2000) -> FALSE | G5: 0 | H5: =25+ROUNDUP((A5-500)/100,0)*2.75 -> 11.25
A6: =+'Plan and Building Inputs'!$C$15 -> 0 | C6: $2,001 to $3,000 | D6: No plan review fee for valuations $3,000 and under. | E6: Use the formula in the column to the left, but take this total times 1.35 | F6: =AND(A6>2001, A6<=3000) -> FALSE | G6: 0 | H6: =(66.25+ROUNDUP((A6-2000)/1000,0)*10.25)*1.35 -> 61.7625
A7: =+'Plan and Building Inputs'!$C$15 -> 0 | C7: $3,001 to $25,000 | D7: Over $3,000 -- $66.25 for the first $2,000 plus $10.25 for each additional $1,000 fraction thereof to and including $25,000. Take this total times 0.65 | F7: =AND(A7>3001, A7<=25000) -> FALSE | G7: =(66.25+ROUNDUP((A7-2000)/1000,0)*10.25)*0.65 -> 29.7375 | H7: =(66.25+ROUNDUP((A7-2000)/1000,0)*10.25)*1.35 -> 61.7625
A8: =+'Plan and Building Inputs'!$C$15 -> 0 | C8: $25,001 to $50,000 | D8: $302.00 for the first $25,000 plus $8.50 for each additional $1,000 or fraction thereof to and including $50,000. Take this total times 0.65 | E8: Use the formula in the column to the left, but take this total times 1.35 | F8: =AND(A8>25001, A8<=50000) -> FALSE | G8: =(302+ROUNDUP((A7-25000)/1000,0)*8.5)*0.65 -> 58.175 | H8: =(302+ROUNDUP((A8-25000)/1000,0)*8.5)*1.35 -> 120.825
A9: =+'Plan and Building Inputs'!$C$15 -> 0 | C9: $50,001 to $100,000 | D9: $514.50 for the first $50,000 plus $6 for each additional $1,000 or fraction thereof to and including $100,000. Take this total times 0.65 | E9: Use the formula in the column to the left, but take this total times 1.35 | F9: =AND(A9>50001, A9<=100000) -> FALSE | G9: =(514.5+ROUNDUP((A8-50000)/1000,0)*6)*0.65 -> 139.425 | H9: =(514.5+ROUNDUP((A9-50000)/1000,0)*6)*1.35 -> 289.575
A10: =+'Plan and Building Inputs'!$C$15 -> 0 | C10: $100,001 to $500,000 | D10: $814.50 for the first $100,000 plus $4.00 for each additional $1,000 or fraction thereof. Take this total times 0.65 | E10: Use the formula in the column to the left, but take this total times 1.35 | F10: =AND(A10>100001, A10<=500000) -> FALSE | G10: =(814.5+ROUNDUP((A9-100000)/1000,0)*4)*0.65 -> 269.425 | H10: =(814.5+ROUNDUP((A10-100000)/1000,0)*4)*1.35 -> 559.575
A11: =+'Plan and Building Inputs'!$C$15 -> 0 | C11: $500,001 to $1,000,000 | D11: $2414.50 for the first $500,000 plus $3.50 for each additional $1,000 or fraction thereof. Take this total times 0.65 | E11: Use the formula in the column to the left, but take this total times 1.35 | F11: =AND(A11>500001, A11<=1000000) -> FALSE | G11: =(2414.5+ROUNDUP((A10-500000)/1000,0)*3.5)*0.65 -> 431.925 | H11: =(2414.5+ROUNDUP((A11-500000)/1000,0)*3.5)*1.35 -> 897.075
A12: =+'Plan and Building Inputs'!$C$15 -> 0 | C12: $1,000,001 to $10,000,000 | D12: $4,164.50 for the first $1,000,000 plus $2.50 for each additional $1,000 or fraction thereof. Take this total times 0.65 | E12: Use the formula in the column to the left, but take this total times 1.35 | F12: =AND(A12>1000001, A12<=10000000) -> FALSE | G12: =(4164.5+ROUNDUP((A11-1000000)/1000,0)*2.5)*0.65 -> 1081.925 | H12: =(4164.5+ROUNDUP((A12-1000000)/1000,0)*2.5)*1.35 -> 2247.075
A13: =+'Plan and Building Inputs'!$C$15 -> 0 | C13: $10,000,001 and up | D13: $26,664.50 for the first $10,000,000 plus $1.00 for each additional $1,000 or fraction thereof.Take this total times 0.65 | E13: Use the formula in the column to the left, but take this total times 1.35 | F13: =A13>10000001 -> FALSE | G13: =(26664.5+ROUNDUP((A12-10000000)/1000,0)*1)*0.65 -> 10831.925 | H13: =(26664.5+ROUNDUP((A13-10000000)/1000,0)*1)*1.35 -> 22497.075
E15: Output | G15: =VLOOKUP(TRUE, $F$2:$H$13,2,FALSE) ->  | H15: =VLOOKUP(TRUE, $F$2:$H$13,3,FALSE) -> 
E16: Extra $12 for Secondary building | G16: =IF('Plan and Building Inputs'!C7="Secondary Building",12,0) -> 0
E17: Total | G17: =IF(G16=12,G16,G15) -> 

Sheet Minimum Project Values (hidden)
D2: Type | E2: Area | F2: Square Feet | G2: Cost/Sq Ft | H2: Total
E3: Garage | F3: ='Plan and Building Inputs'!C35 -> 0 | G3: 37.3 | H3: =+G3*F3 -> 0
E4: Pole Barn (Post Frame Const) | F4: ='Plan and Building Inputs'!C36 -> 0 | G4: 29 | H4: =+G4*F4 -> 0
E5: Carport | F5: ='Plan and Building Inputs'!C37 -> 0 | G5: 27.9 | H5: 0
E6: Fabric Carport | F6: ='Plan and Building Inputs'!C38 -> 0 | G6: 1.5 | H6: 0
E7: Metal Carport | F7: ='Plan and Building Inputs'!C39 -> 0 | G7: 6.5 | H7: 0
E8: Shed | F8: ='Plan and Building Inputs'!C40 -> 0 | G8: 17.5 | H8: 0
E9: Patio Cover/Deck | F9: ='Plan and Building Inputs'!C41 -> 0 | G9: 22.35 | H9: 0
E10: Pergola/Sunshade | F10: ='Plan and Building Inputs'!C42 -> 0 | G10: 11.18 | H10: 0
E11: Basement (Finished) | F11: ='Plan and Building Inputs'!C43 -> 0 | G11: 45.3 | H11: 0
E12: Basement (Unfinished) | F12: ='Plan and Building Inputs'!C44 -> 0 | G12: 15 | H12: 0
E13: Garden Level (Finished) | F13: ='Plan and Building Inputs'!C45 -> 0 | G13: 45.3 | H13: 0
E14: Garden Level (Unfinished) | F14: ='Plan and Building Inputs'!C46 -> 0 | G14: 15 | H14: 0
E15: Finishing Existing Basement | F15: ='Plan and Building Inputs'!C47 -> 0 | G15: 30.3 | H15: 0
D16: Single Family - Attached | E16: Less than 1600 sq Finished | F16: =IF(AND(D16='Plan and Building Inputs'!$C$7,'Plan and Building Inputs'!$C$11<1600),'Plan and Building Inputs'!$C$11,0) -> 0 | G16: 75.9 | H16: 0
D17: Single Family - Attached | E17: 1600 - 2500 sq ft Finished | F17: =IF(AND(D17='Plan and Building Inputs'!$C$7,'Plan and Building Inputs'!$C$11>1600,'Plan and Building Inputs'!$C$11<2500),'Plan and Building Inputs'!$C$11,0) -> 0 | G17: 85.9 | H17: 0
D18: Single Family - Attached | E18: Over 2500 sq ft Finished | F18: =IF(AND(D18='Plan and Building Inputs'!$C$7,'Plan and Building Inputs'!$C$11>2500),'Plan and Building Inputs'!$C$11,0) -> 0 | G18: 95.9 | H18: 0
D19: Single Family - Detached | E19: Less than 1600 sq Finished | F19: =IF(AND(D19='Plan and Building Inputs'!$C$7,'Plan and Building Inputs'!$C$11<1600),'Plan and Building Inputs'!$C$11,0) -> 0 | G19: 75.9 | H19: 0
D20: Single Family - Detached | E20: 1600 - 2500 sq ft Finished | F20: =IF(AND(D20='Plan and Building Inputs'!$C$7,'Plan and Building Inputs'!$C$11>1600,'Plan and Building Inputs'!$C$11<2500),'Plan and Building Inputs'!$C$11,0) -> 0 | G20: 85.9 | H20: 0
D21: Single Family - Detached | E21: Over 2500 sq ft Finished | F21: =IF(AND(D21='Plan and Building Inputs'!$C$7,'Plan and Building Inputs'!$C$11>2500),'Plan and Building Inputs'!$C$11,0) -> 0 | G21: 95.9 | H21: 0
D22: Duplex | E22: Less than 1600 sq Finished | F22: =IF(AND(D22='Plan and Building Inputs'!$C$7,'Plan and Building Inputs'!$C$11<1600),'Plan and Building Inputs'!$C$11,0) -> 0 | G22: 75.9 | H22: 0
D23: Duplex | E23: 1600 - 2500 sq ft Finished | F23: =IF(AND(D23='Plan and Building Inputs'!$C$7,'Plan and Building Inputs'!$C$11>1600,'Plan and Building Inputs'!$C$11<2500),'Plan and Building Inputs'!$C$11,0) -> 0 | G23: 85.9 | H23: 0
D24: Duplex | E24: Over 2500 sq ft Finished | F24: =IF(AND(D24='Plan and Building Inputs'!$C$7,'Plan and Building Inputs'!$C$11>2500),'Plan and Building Inputs'!$C$11,0) -> 0 | G24: 95.9 | H24: 0
D25: Multi-Family | E25: Less than 1600 sq Finished | F25: =IF(AND(D25='Plan and Building Inputs'!$C$7,'Plan and Building Inputs'!$C$11<1600),'Plan and Building Inputs'!$C$11,0) -> 0 | G25: 73.01 | H25: 0
D26: Multi-Family | E26: 1600 - 2500 sq ft Finished | F26: =IF(AND(D26='Plan and Building Inputs'!$C$7,'Plan and Building Inputs'!$C$11>1600,'Plan and Building Inputs'!$C$11<2500),'Plan and Building Inputs'!$C$11,0) -> 0 | G26: 83.01 | H26: 0
D27: Multi-Family | E27: Over 2500 sq ft Finished | F27: =IF(AND(D27='Plan and Building Inputs'!$C$7,'Plan and Building Inputs'!$C$11>2500),'Plan and Building Inputs'!$C$11,0) -> 0 | G27: 93.01 | H27: 0
D28: Townhome | E28: Less than 1600 sq Finished | F28: =IF(AND(D28='Plan and Building Inputs'!$C$7,'Plan and Building Inputs'!$C$11<1600),'Plan and Building Inputs'!$C$11,0) -> 0 | G28: 73.01 | H28: 0
D29: Townhome | E29: 1600 - 2500 sq ft Finished | F29: =IF(AND(D29='Plan and Building Inputs'!$C$7,'Plan and Building Inputs'!$C$11>1600,'Plan and Building Inputs'!$C$11<2500),'Plan and Building Inputs'!$C$11,0) -> 0 | G29: 83.01 | H29: 0
D30: Townhome | E30: Over 2500 sq ft Finished | F30: =IF(AND(D30='Plan and Building Inputs'!$C$7,'Plan and Building Inputs'!$C$11>2500),'Plan and Building Inputs'!$C$11,0) -> 0 | G30: 93.01 | H30: 0
H31: =SUM(H3:H30) -> 0 | I31: Minimum Value
H32: =+'Plan and Building Inputs'!C15-'Minimum Project Values'!H31 -> 0 | I32: Difference Between entered Valuation and minimum valuation

Sheet Accela Options (hidden)
C1: Group | D1: Type | E1: Subtype | F1: Category | G1: Building Permit # used to validate | H1: Comment
C2: Building | D2: Addition | E2: Commercial | F2: na | G2: B1801026 | H2: Off captial expansion
C3: Building | D3: Addition | E3: Residential | F3: na | G3: B1802186 | H3: X
C4: Building | D4: Alteration | E4: Commercial | F4: CFB | G4: looks like we don't do these anymore
C5: Building | D5: Alteration | E5: Commercial | F5: General | G5: B1803506 | H5: X
C6: Building | D6: Alteration | E6: Commercial | F6: Minor | G6: B1800398 | H6: X
C7: Building | D7: Alteration | E7: Residential | F7: General | G7: B1803867 | H7: X
C8: Building | D8: Alteration | E8: Residential | F8: Minor | G8: B1803846 | H8: Slightly off on Building Pemit fee 52.31. I'm not sure how they are coming up with 52.31. OK otherwise. This is the only one of this type that I could find
C9: Building | D9: Minor Permit | E9: Awning | F9: na | G9: B1800227 | H9: X
C10: Building | D10: Minor Permit | E10: Commercial | F10: Electric sprinkler Control Clock | G10: B1705001 | H10: X
C11: Building | D11: Minor Permit | E11: Commercial | F11: Electrical | G11: B1803983 | H11: X
C12: Building | D12: Minor Permit | E12: Commercial | F12: Fireplace - Wood Burning Stove | H12: went back to 2014 can't find a permit
C13: Building | D13: Minor Permit | E13: Commercial | F13: Gas lOg-Gas Lighter | G13: B1702231 | H13: X
C14: Building | D14: Minor Permit | E14: Commercial | F14: Mechanical | G14: B1805589 | H14: X
C15: Building | D15: Minor Permit | E15: Commercial | F15: Plumbing | G15: B1805761 | H15: X
C16: Building | D16: Minor Permit | E16: Commercial | F16: Pool | G16: B1804143 | H16: X
C17: Building | D17: Minor Permit | E17: Commercial | F17: Roofing - Re-roofing | G17: B1805851 | H17: X
C18: Building | D18: Minor Permit | E18: Commercial | F18: Sprinkler | G18: B1805113 | H18: To do: Check when a flat $25 Permit fee is assesed. Thought I had, it but I don't
C19: Building | D19: Minor Permit | E19: Commercial | F19: Water Heater | H19: No permits issued back to 2013
C20: Building | D20: Minor Permit | E20: Deck | F20: na | G20: B1805726 | H20: X
C21: Building | D21: Minor Permit | E21: Demolition | F21: na | G21: B1805785 | H21: X
C22: Building | D22: Minor Permit | E22: Electric Service Change | F22: na | G22: B1805459 | H22: To do: Need to implement which the flat fee is applied to building permit and not plan check fee for electrical changes. Thought I had, it but I don't
C23: Building | D23: Minor Permit | E23: Fence | F23: na | G23: B1803588 | H23: X
C24: Building | D24: Minor Permit | E24: New Mobile Home | F24: na | H24: went back to 2014 can't find a permit
C25: Building | D25: Minor Permit | E25: Patio Cover | F25: na | G25: B1806060 | H25: X
C26: Building | D26: Minor Permit | E26: Residential | F26: Pool | G26: B1801303 | H26: X
C27: Building | D27: Minor Permit | E27: Sales Trailer | F27: na | G27: B1802280 | H27: X
C28: Building | D28: Minor Permit | E28: Sign | F28: na | G28: B1805911 | H28: X
C29: Building | D29: Minor Permit | E29: Storage Shed | F29: na | G29: B1804901 | H29: X
C30: Building | D30: Minor Permit | E30: Temporary Structure | F30: na | G30: B1401844 | H30: X
C31: Building | D31: New | E31: Commercial | F31: Com-Ind-Mixed-Use Building | G31: B1803238 | H31: X
C32: Building | D32: New | E32: Residential | F32: Duplex | G32: B1705260 | H32: This permit is the newest one and based on the secondary service, rates might be out dated from model. We are higher
C33: Building | D33: New | E33: Residential | F33: Manufactured Home | G33: B1700435 | H33: This permit is the newest one and based on the secondary service, rates might be out dated from model. We are higher
C34: Building | D34: New | E34: Residential | F34: Multi-Family | G34: B1805098 | H34: Now it ties once I have the right lot size (the lot squar footage that Joni gave me I couldn’t find in accella). Distribution of lot size break out for Stormwater is unclear. Mostly out because WSR was resolved outside the permit
C35: Building | D35: New | E35: Residential | F35: Secondary Building | G35: B1805816 | H35: X
C36: Building | D36: New | E36: Residential | F36: Single Family Attached | G36: B1805810 | H36: Close. Need further research on sewer and water fees
C37: Building | D37: New | E37: Residential | F37: Single Family Detached | G37: B1806160 | H37: Off sewer. Unclear as to the information provided in accella to the fees that are charged.
C38: Building | D38: OTC | E38: Residential | F38: Basement Finish | G38: B1806078 | H38: To do: Need to implement which the flat fee is applied to building permit and not plan check fee for electrical changes. Thought I had, it but I don't
C39: Building | D39: OTC | E39: Residential | F39: Electric sprinkler Control Clock | G39: B1508463 | H39: X
C40: Building | D40: OTC | E40: Residential | F40: Electrical | G40: B1806014 | H40: X
C41: Building | D41: OTC | E41: Residential | F41: Fireplace - Wood Burning Stove | G41: B1805543 | H41: X
C42: Building | D42: OTC | E42: Residential | F42: Gas lOg-Gas Lighter | G42: B1805849 | H42: X
C43: Building | D43: OTC | E43: Residential | F43: Mechanical | G43: B1806144 | H43: X
C44: Building | D44: OTC | E44: Residential | F44: Mobile Home Installation | G44: B1803815 | H44: X
C45: Building | D45: OTC | E45: Residential | F45: Plumbing | G45: B1806107 | H45: X
C46: Building | D46: OTC | E46: Residential | F46: Roofing - Re-roofing | G46: B1806150 | H46: X
C47: Building | D47: OTC | E47: Residential | F47: Sprinkler | G47: B1805756 | H47: X
C48: Building | D48: OTC | E48: Residential | F48: Water Heater | G48: B1806113
C50: Did not include Building MISC, Project or Unapproved Dwelling unit

Sheet To Do (hidden)
A3: Tyler siegmund - Electric Dev Rev
A7: Change valuation for Plan Check Fee w/ stock fee using dropdown
A8: Talk to Utilities about BOD | B8: Biochemical Oxygen Demand
A9: Talk to Utilities about TSS | B9: Total Suspended Solids
A10: Talk to Utilities about how often multiple meters occur
A11: Talk to Utilities about Multi-Family number of meters for water - depends on how they will do it… one meter per building and size or individually metered, etc.
A12: Look at items like adding a parking lot and how we would calculate those fees
A13: ESCROWS!
A14: Create Development Review Calculator
A15: Create pop up when project minimums have not been met and unhide project minimum sheet
A21: Questions for Kiana
A22: With a new build, if they are doing a fireplace/finished basement/etc, is that included as part of the overall project cost? | B22: part of the overall project - do not need to as part of the OTC
A23: What is the difference b/n a general commerical alteration and a minor? | B23: minor is combined OTC for commerical or residential (e.g. new furnace, water heater, all in one). General is like a tenant finish on a commerical speace

Sheet Dropdowns (hidden)
B2: Type | C2: DropDown1 | D2: Residential | E2: Commercial (Single Phase) | F2: Office and Other Services (3-phase) | G2: Industrial/Warehouse (Large Comm) | Q2: Amps | S2: Voltage
B3: Commercial (Single Phase) | C3: Addition | D3: -- | E3: -- | F3: Church/Synagogue | G3: General Ligh Industrial/Industrial Park | J3: 3/4 inch | L3: Yes | N3: Single Family | Q3: 150 | S3: 208 | U3: Single
B4: Industrial/Warehouse (Large Comm) | C4: Alteration | D4: Accessory Living Area - Attached | E4: Auto Sales (& Speciality Retail) | F4: Day Care Center | G4: Mini-Warehouse | J4: 1 inch | L4: No | N4: Duplex | Q4: 200 | S4: 240 | U4: Three
B5: Office and Other Services (3-phase) | C5: Minor Permit | D5: Accessory Living Area - Detached | E5: Auto Service/Repair/Tire Store | F5: Elementary/Secondary School | G5: Warehouse | J5: 1-1/2 inch | L5: -- | N5: Multi-Family | Q5: EH | S5: 277
B6: Residential | C6: New | D6: Air Conditioning | E6: Bank | F6: Hospital | J6: 2 inch | N6: -- | Q6: -- | S6: 480
D7: Basement Finish | E7: Basement Finish | F7: Medical Office | J7: 3 inch | S7: 13200
D8: Cabin (30% of single family detached) | E8: Building Materials/Hardware/Nursery | F8: Nursing Home | J8: 4 inch | S8: --
D9: Deck | E9: Convenience store | F9: Office, General < 100,000 sq ft | J9: --
D10: Demolition | E10: Deck | F10: Office, General 100k - 200k sq ft
D11: Duplex | E11: Demolition | F11: Office, General > 200,000 sq ft
D12: Electrical | E12: Discount Store
D13: Extended Family (3 yr permit) | E13: Electrical
D14: Farmstead Accessory Living | E14: Fence
D15: Fence | E15: Fireplace
D16: Fireplace | E16: Funiture Store
D17: Furnace | E17: General Reatial <100,000 sq ft
D18: Gas | E18: General Reatil 100k - 500k sq ft
D19: Hotel/Motel | E19: General Reatil 500k - 1M sqt ft
D20: Manufactured Home | E20: General Retail > 1 million sq ft
D21: Mechanical | E21: Mechanical
D22: Mobile Home | E22: Mobile Home
D23: Mobile Home Installation | E23: Movie Theater
D24: Multi-Family | E24: Patio Cover
D25: New Secondary | E25: Plumbing
D26: Patio Cover | E26: Pool
D27: Plumbing | E27: Re-Roof
D28: Pool | E28: Restaurant, Fast Food
D29: Re-Roof | E29: Restaurant, Sit Down
D30: Secondary Building | E30: Sales Trailer
D31: Sales Trailer | E31: Secondary Building
D32: Shed | E32: Shed
D33: Single Family - Attached | E33: Sign
D34: Single Family - Detached | E34: Sprinkler
D35: Sprinkler | E35: Temporary Structure
D36: Temporary Structure | E36: Water Heater
D37: Water Heater
E39: Residential | F39: Residential
E40: Commercial (Single Phase) | F40: CommercialSinglePhase
E41: Office and Other Services (3-phase) | F41: OfficeandOtherServices
E42: Industrial/Warehouse (Large Comm) | F42: Industrial

Sheet Electric (hidden)
A1: Type | B1: Sub Type | C1: # of units | D1: Amps | E1: Phase | F1: Voltage | G1: Category | I1: Phase | M1: Voltage | N1: Calculated kW | O1: $/kW | P1: Cost per Unit | Q1: Amount
A2: =+'Plan and Building Inputs'!$C$4 -> 0 | B2: =+'Plan and Building Inputs'!$C$7 -> 0 | C2: =+'Plan and Building Inputs'!$C$14 -> 0 | D2: =+'Plan and Building Inputs'!$C$30 -> 0 | E2: =+'Plan and Building Inputs'!$C$29 -> 0 | F2: =+'Plan and Building Inputs'!$C$31 -> 0 | G2: =IF(AND(A2="Residential", B2="Single Family"), "Single Family", IF(AND(A2="Residential", B2<>"Single Family"), "Multi-Family", "Commercial")) -> Commercial | H2: =IF(G2="Single Family", "SF "&D2&" Amp", IF(G2="Multi-Family", "MF "&D2&" Amp", D2)) -> 0 | I2: ='Plan and Building Inputs'!$C$29 -> 0 | J2: =IF('Plan and Building Inputs'!$C$10="Yes",IF(A2="Residential",H2=M2,FALSE),FALSE) -> FALSE | K2: Residential | L2: Single Family | M2: SF 150 Amp | P2: 1537 | Q2: =C2*P2 -> 0
A3: =+'Plan and Building Inputs'!$C$4 -> 0 | B3: =+'Plan and Building Inputs'!$C$7 -> 0 | C3: =+'Plan and Building Inputs'!$C$14 -> 0 | D3: =+'Plan and Building Inputs'!$C$30 -> 0 | E3: =+'Plan and Building Inputs'!$C$29 -> 0 | F3: =+'Plan and Building Inputs'!$C$31 -> 0 | G3: =IF(AND(A3="Residential", B3="Single Family"), "Single Family", IF(AND(A3="Residential", B3<>"Single Family"), "Multi-Family", "Commercial")) -> Commercial | H3: =IF(G3="Single Family", "SF "&D3&" Amp", IF(G3="Multi-Family", "MF "&D3&" Amp", D3)) -> 0 | I3: ='Plan and Building Inputs'!$C$29 -> 0 | J3: =IF('Plan and Building Inputs'!$C$10="Yes",IF(A3="Residential",H3=M3,FALSE),FALSE) -> FALSE | K3: Residential | L3: Single Family | M3: SF 200 Amp | P3: 1879 | Q3: =C3*P3 -> 0
A4: =+'Plan and Building Inputs'!$C$4 -> 0 | B4: =+'Plan and Building Inputs'!$C$7 -> 0 | C4: =+'Plan and Building Inputs'!$C$14 -> 0 | D4: =+'Plan and Building Inputs'!$C$30 -> 0 | E4: =+'Plan and Building Inputs'!$C$29 -> 0 | F4: =+'Plan and Building Inputs'!$C$31 -> 0 | G4: Commercial | H4: 0 | I4: ='Plan and Building Inputs'!$C$29 -> 0 | J4: =IF('Plan and Building Inputs'!$C$10="Yes",IF(A4="Residential",H4=M4,FALSE),FALSE) -> FALSE | K4: Residential | L4: Single Family | M4: SF EH Amp | P4: 2508 | Q4: =C4*P4 -> 0
A5: =+'Plan and Building Inputs'!$C$4 -> 0 | B5: =+'Plan and Building Inputs'!$C$7 -> 0 | C5: =+'Plan and Building Inputs'!$C$14 -> 0 | D5: =+'Plan and Building Inputs'!$C$30 -> 0 | E5: =+'Plan and Building Inputs'!$C$29 -> 0 | F5: =+'Plan and Building Inputs'!$C$31 -> 0 | G5: Commercial | H5: 0 | I5: ='Plan and Building Inputs'!$C$29 -> 0 | J5: =IF('Plan and Building Inputs'!$C$10="Yes",IF(A5="Residential",H5=M5,FALSE),FALSE) -> FALSE | K5: Residential | L5: Multi-Family | M5: MF 150 Amp | P5: 1349.53642 | Q5: =C5*P5 -> 0
A6: =+'Plan and Building Inputs'!$C$4 -> 0 | B6: =+'Plan and Building Inputs'!$C$7 -> 0 | C6: =+'Plan and Building Inputs'!$C$14 -> 0 | D6: =+'Plan and Building Inputs'!$C$30 -> 0 | E6: =+'Plan and Building Inputs'!$C$29 -> 0 | F6: =+'Plan and Building Inputs'!$C$31 -> 0 | G6: Commercial | H6: 0 | I6: ='Plan and Building Inputs'!$C$29 -> 0 | J6: =IF('Plan and Building Inputs'!$C$10="Yes",IF(A6="Residential",H6=M6,FALSE),FALSE) -> FALSE | K6: Residential | L6: Multi-Family | M6: MF 200 Amp | P6: 2066.143784 | Q6: =C6*P6 -> 0
A7: =+'Plan and Building Inputs'!$C$4 -> 0 | B7: =+'Plan and Building Inputs'!$C$7 -> 0 | C7: =+'Plan and Building Inputs'!$C$14 -> 0 | D7: =+'Plan and Building Inputs'!$C$30 -> 0 | E7: =+'Plan and Building Inputs'!$C$29 -> 0 | F7: =+'Plan and Building Inputs'!$C$31 -> 0 | G7: Commercial | H7: 0 | I7: ='Plan and Building Inputs'!$C$29 -> 0 | J7: =IF('Plan and Building Inputs'!$C$10="Yes",IF(A7="Residential",H7=M7,FALSE),FALSE) -> FALSE | K7: Commercial | L7: Primary Metered | M7: 13200 | N7: =IFERROR(D7*M7*$B$18*$B$19*IF(I7="Three", SQRT(3), 1)/1000,0) -> 0 | O7: =IFERROR(C14+C15*LN(N7),0) -> 0 | Q7: =+O7*N7 -> 0
A8: =+'Plan and Building Inputs'!$C$4 -> 0 | B8: =+'Plan and Building Inputs'!$C$7 -> 0 | C8: =+'Plan and Building Inputs'!$C$14 -> 0 | D8: =+'Plan and Building Inputs'!$C$30 -> 0 | E8: =+'Plan and Building Inputs'!$C$29 -> 0 | F8: =+'Plan and Building Inputs'!$C$31 -> 0 | G8: Commercial | H8: 0 | I8: ='Plan and Building Inputs'!$C$29 -> 0 | J8: =IF('Plan and Building Inputs'!$C$10="Yes",IF(A8="Residential",H8=M8,FALSE),FALSE) -> FALSE | K8: Commercial | L8: Secondary Metered | M8: 13200 | N8: =IFERROR(D8*M8*$B$18*$B$19*IF(I8="Three", SQRT(3), 1)/1000,0) -> 0 | O8: =IFERROR(C15+C16*LN(N8),0) -> 0 | Q8: =+O8*N8 -> 0
P10: Output | Q10: =IFERROR(VLOOKUP(TRUE, J1:Q8,8,FALSE),0) -> 0
A13: Regression Result | B13: Secondary Metered | C13: Primary Metered
A14: Constant* | B14: 320.31 | C14: 212.7781746
A15: Coefficient* | B15: 21 | C15: 7.886934854
A18: Power Factor | B18: 0.9
A19: Panel Utilizaiton Factor | B19: 0.3
A21: Electric Underground Secondary Service Charge:
A22: Single Family Resident | B22: 1143 | C22: Updated fees
A23: Temporary Pedestal Service | B23: 182.7
A25: Type
A26: Duplex | B26: =IFERROR(MATCH(A26,'Plan and Building Inputs'!$C$7,0),0) -> 0
A27: Multi-Family | B27: =IFERROR(MATCH(A27,'Plan and Building Inputs'!$C$7,0),0) -> 0
A28: Single Family | B28: =IFERROR(MATCH(A28,'Plan and Building Inputs'!$C$7,0),0) -> 0
A29: Manufactured Home | B29: =IFERROR(MATCH(A29,'Plan and Building Inputs'!$C$7,0),0) -> 0
A30: Single Family - Attached | B30: =IFERROR(MATCH(A30,'Plan and Building Inputs'!$C$7,0),0) -> 0
A31: Single Family - Detached | B31: =IFERROR(MATCH(A31,'Plan and Building Inputs'!$C$7,0),0) -> 0
A32: Check | B32: =SUM(B26:B31) -> 0

Sheet Comm Revenue Elec Fee (hidden)
A1: Labor is Cacluated as Follows: | D1: Per Temp | E1: Per Hour | F1: Per Hour
A2: Services Supervisor | D2: =+E2*F2 -> 30.955 | E2: 61.91 | F2: 0.5
A3: Lineworker One | D3: =+E3*F3 -> 28.27 | E3: 56.54 | F3: 0.5
A4: Groundworker | D4: =+E4*F4 -> 38.4 | E4: 38.4 | F4: 1
D5: =SUM(D2:D4) -> 97.625 | E5: =SUM(E2:E4) -> 156.85
A7: Equipment is calculated as Follows: | D7: Per Temp | E7: Per Hour | F7: Per Hour
A8: One Ton Truck | D8: =+E8*F8 -> 2.65 | E8: 5.3 | F8: 0.5
A9: Utility Truck | D9: =+E9*F9 -> 28.22 | E9: 56.44 | F9: 0.5
A10: Backhoe | D10: =+E10*F10 -> 14.1375 | E10: 56.55 | F10: 0.25
A11: Misc. Tools | D11: =+E11*F11 -> 5.835 | E11: 11.67 | F11: 0.5
D12: =SUM(D8:D11) -> 50.8425 | E12: =SUM(E8:E11) -> 129.96
A14: Total Labor and Equipment | D14: =+D5+D12 -> 148.4675 | F14: Labor and Equipment per Temp
D16: =+D14*0.15 -> 22.270125 | F16: 15% Overhead (15% by City Code0
D17: =+D14+D16 -> 170.737625
A20: Material Costs | D20: 10.39 | F20: Annual GFI Replacement/1100 temps
D21: 1.56 | F21: 15% Overhead (15% by City Code0
A22: Total Materials | D22: =SUM(D20:D21) -> 11.95
A24: Energy is calculated as follows:
A25: Fixed Charge | D25: 3.6
A26: Average kWh | F26: 150 | G26: Per Month
A27: Charge per kWh | D27: 14.33 | F27: 0.0955 | G27: Per kWh
D28: =SUM(D25:D27) -> 17.93 | F28: per month
A30: PILOT | D30: 1.08 | F30: 0.06 | G30: PILOTS percent
A32: average months | D32: =+D28+D30 -> 19.01 | F32: per month
D34: =+D32*3 -> 57.03 | F34: 3 month Energy charge per temp
D36: =+D28*3 -> 53.79 | F36: Comm Revenue
D38: =+D17+D22 -> 182.687625 | F38: Misc Revenue Temp Pedestal

Sheet County TCEF (hidden)
A3: Type | B3: Category | C3: Square Feet | D3: Units | F3: Type | G3: Category | H3: Unit of Measure | I3: Area Test | J3: Type Test | K3: Dwelling test | L3: New/Addition | M3: Cap Expansion Test | N3: County | O3: Regional
A4: =+'Plan and Building Inputs'!$C$4 -> 0 | B4: =+'Plan and Building Inputs'!$C$7 -> 0 | C4: =+'Plan and Building Inputs'!$C$11 -> 0 | D4: =+'Plan and Building Inputs'!$C$14 -> 0 | E4: =G4=B4 -> FALSE | F4: Residential | G4: Resid., up to 900 sf | H4: 1 Dwelling | I4: =C4<=900 -> TRUE | J4: =A4=F4 -> FALSE | K4: =IF(AND(A4="Residential",'Plan and Building Inputs'!$C$13>0,'Without Subs (OTC Permits)'!$C$19=0),TRUE,FALSE) -> FALSE | L4: =IF(OR('Plan and Building Inputs'!$C$5="New",'Plan and Building Inputs'!$C$5="Addition"),TRUE,FALSE) -> FALSE | M4: =IF(AND(I4=TRUE,J4=TRUE,K4=TRUE),TRUE,FALSE) -> FALSE | N4: 1946 | O4: 163
A5: =+'Plan and Building Inputs'!$C$4 -> 0 | B5: =+'Plan and Building Inputs'!$C$7 -> 0 | C5: =+'Plan and Building Inputs'!$C$11 -> 0 | D5: =+'Plan and Building Inputs'!$C$14 -> 0 | E5: =G5=B5 -> FALSE | F5: Residential | G5: Resid., 901-1,300 sf | H5: 1 Dwelling | I5: =AND(C5>901, C5<=1300) -> FALSE | J5: =A5=F5 -> FALSE | K5: =IF(AND(A5="Residential",'Plan and Building Inputs'!$C$13>0,'Without Subs (OTC Permits)'!$C$19=0),TRUE,FALSE) -> FALSE | L5: =IF(OR('Plan and Building Inputs'!$C$5="New",'Plan and Building Inputs'!$C$5="Addition"),TRUE,FALSE) -> FALSE | M5: =IF(AND(I5=TRUE,J5=TRUE,K5=TRUE),TRUE,FALSE) -> FALSE | N5: 2727 | O5: 228
A6: =+'Plan and Building Inputs'!$C$4 -> 0 | B6: =+'Plan and Building Inputs'!$C$7 -> 0 | C6: =+'Plan and Building Inputs'!$C$11 -> 0 | D6: =+'Plan and Building Inputs'!$C$14 -> 0 | E6: =G6=B6 -> FALSE | F6: Residential | G6: Resid., 1,301-1,800 sf | H6: 1 Dwelling | I6: =AND(C6>1301, C6<=1800) -> FALSE | J6: FALSE | K6: =IF(AND(A6="Residential",'Plan and Building Inputs'!$C$13>0,'Without Subs (OTC Permits)'!$C$19=0),TRUE,FALSE) -> FALSE | L6: =IF(OR('Plan and Building Inputs'!$C$5="New",'Plan and Building Inputs'!$C$5="Addition"),TRUE,FALSE) -> FALSE | M6: FALSE | N6: 3284 | O6: 275
A7: =+'Plan and Building Inputs'!$C$4 -> 0 | B7: =+'Plan and Building Inputs'!$C$7 -> 0 | C7: =+'Plan and Building Inputs'!$C$11 -> 0 | D7: =+'Plan and Building Inputs'!$C$14 -> 0 | E7: =G7=B7 -> FALSE | F7: Residential | G7: Resid., 1,801-2,400 sf | H7: 1 Dwelling | I7: =AND(C7>1801, C7<=2400) -> FALSE | J7: FALSE | K7: =IF(AND(A7="Residential",'Plan and Building Inputs'!$C$13>0,'Without Subs (OTC Permits)'!$C$19=0),TRUE,FALSE) -> FALSE | L7: =IF(OR('Plan and Building Inputs'!$C$5="New",'Plan and Building Inputs'!$C$5="Addition"),TRUE,FALSE) -> FALSE | M7: FALSE | N7: 3846 | O7: 322
A8: =+'Plan and Building Inputs'!$C$4 -> 0 | B8: =+'Plan and Building Inputs'!$C$7 -> 0 | C8: =+'Plan and Building Inputs'!$C$11 -> 0 | D8: =+'Plan and Building Inputs'!$C$14 -> 0 | E8: FALSE | F8: Residential | G8: Resid., 2,401-3,000 sf | H8: 1 Dwelling | I8: =AND(C8>2401, C8<=3000) -> FALSE | J8: FALSE | K8: =IF(AND(A8="Residential",'Plan and Building Inputs'!$C$13>0,'Without Subs (OTC Permits)'!$C$19=0),TRUE,FALSE) -> FALSE | L8: =IF(OR('Plan and Building Inputs'!$C$5="New",'Plan and Building Inputs'!$C$5="Addition"),TRUE,FALSE) -> FALSE | M8: =IF(AND(I8=TRUE,J8=TRUE,K8=TRUE),TRUE,FALSE) -> FALSE | N8: 4315 | O8: 361
A9: =+'Plan and Building Inputs'!$C$4 -> 0 | B9: =+'Plan and Building Inputs'!$C$7 -> 0 | C9: =+'Plan and Building Inputs'!$C$11 -> 0 | D9: =+'Plan and Building Inputs'!$C$14 -> 0 | E9: =G9=B9 -> FALSE | F9: Residential | G9: Resid., 3,001-3,600 sf | H9: 1 Dwelling | I9: =AND(C9>3001, C9<=3600) -> FALSE | J9: FALSE | K9: =IF(AND(A9="Residential",'Plan and Building Inputs'!$C$13>0,'Without Subs (OTC Permits)'!$C$19=0),TRUE,FALSE) -> FALSE | L9: =IF(OR('Plan and Building Inputs'!$C$5="New",'Plan and Building Inputs'!$C$5="Addition"),TRUE,FALSE) -> FALSE | M9: FALSE | N9: 3699 | O9: 393
A10: =+'Plan and Building Inputs'!$C$4 -> 0 | B10: =+'Plan and Building Inputs'!$C$7 -> 0 | C10: =+'Plan and Building Inputs'!$C$11 -> 0 | D10: =+'Plan and Building Inputs'!$C$14 -> 0 | E10: FALSE | F10: Residential | G10: Resid., over 3,600 sf | H10: 1 Dwelling | I10: =C10>3600 -> FALSE | J10: FALSE | K10: =IF(AND(A10="Residential",'Plan and Building Inputs'!$C$13>0,'Without Subs (OTC Permits)'!$C$19=0),TRUE,FALSE) -> FALSE | L10: =IF(OR('Plan and Building Inputs'!$C$5="New",'Plan and Building Inputs'!$C$5="Addition"),TRUE,FALSE) -> FALSE | M10: =IF(AND(I10=TRUE,J10=TRUE,K10=TRUE),TRUE,FALSE) -> FALSE | N10: 5020 | O10: 420
A11: =+'Plan and Building Inputs'!$C$4 -> 0 | B11: =+'Plan and Building Inputs'!$C$7 -> 0 | C11: =+'Plan and Building Inputs'!$C$11 -> 0 | D11: =+'Plan and Building Inputs'!$C$14 -> 0 | E11: FALSE | F11: Commercial (Single Phase) | G11: Commercial (Single Phase) | H11: 1,000 sf | I11: =+C11/1000 -> 0 | J11: FALSE | K11: =IF(AND(A11="Residential",'Plan and Building Inputs'!$C$13>0,'Without Subs (OTC Permits)'!$C$19=0),TRUE,FALSE) -> FALSE | L11: =IF(OR('Plan and Building Inputs'!$C$5="New",'Plan and Building Inputs'!$C$5="Addition"),TRUE,FALSE) -> FALSE | M11: =IF(AND(I11=TRUE,J11=TRUE,K11=TRUE),TRUE,FALSE) -> FALSE | N11: 5039 | O11: 422
A12: =+'Plan and Building Inputs'!$C$4 -> 0 | B12: =+'Plan and Building Inputs'!$C$7 -> 0 | C12: =+'Plan and Building Inputs'!$C$11 -> 0 | D12: =+'Plan and Building Inputs'!$C$14 -> 0 | E12: FALSE | F12: Office and Other Services (3-phase) | G12: Office and Other Services (3-phase) | H12: 1,000 sf | I12: =+C12/1000 -> 0 | J12: FALSE | K12: =IF(AND(A12="Residential",'Plan and Building Inputs'!$C$13>0,'Without Subs (OTC Permits)'!$C$19=0),TRUE,FALSE) -> FALSE | L12: =IF(OR('Plan and Building Inputs'!$C$5="New",'Plan and Building Inputs'!$C$5="Addition"),TRUE,FALSE) -> FALSE | M12: =IF(AND(I12=TRUE,J12=TRUE,K12=TRUE),TRUE,FALSE) -> FALSE | N12: 2965 | O12: 248
A13: =+'Plan and Building Inputs'!$C$4 -> 0 | B13: =+'Plan and Building Inputs'!$C$7 -> 0 | C13: =+'Plan and Building Inputs'!$C$11 -> 0 | D13: =+'Plan and Building Inputs'!$C$14 -> 0 | E13: FALSE | F13: Industrial/Warehouse (Large Comm) | G13: Industrial/Warehouse (Large Comm) | H13: 1,000 sf | I13: 0 | J13: FALSE | K13: =IF(AND(A13="Residential",'Plan and Building Inputs'!$C$13>0,'Without Subs (OTC Permits)'!$C$19=0),TRUE,FALSE) -> FALSE | L13: =IF(OR('Plan and Building Inputs'!$C$5="New",'Plan and Building Inputs'!$C$5="Addition"),TRUE,FALSE) -> FALSE | M13: =IF(AND(I13=TRUE,J13=TRUE,K13=TRUE),TRUE,FALSE) -> FALSE | N13: 1196 | O13: 100
N15: Ouput | O15: =IFERROR(IF('Plan and Building Inputs'!$C$4="Residential",VLOOKUP(TRUE,$M$3:$O$13,3,FALSE)*D4,VLOOKUP(TRUE,$M$3:$O$13,3,FALSE)*$I$11),0) -> 0

Sheet Schools (hidden)
H1: =D3<=4 -> TRUE | I1: =D3>4 -> FALSE
A2: Type | B2: Sub-Type City of Fort Collins | C2: District | D2: Units | H2: 1-4 Unit | I2: 5+ Units
A3: ='Plan and Building Inputs'!$C$4 -> 0 | B3: =+'Plan and Building Inputs'!$C$7 -> 0 | C3: =+'Plan and Building Inputs'!$C$32 -> 0 | D3: =+'Plan and Building Inputs'!$C$14 -> 0 | F3: Poudre | G3: =+IF(AND(C3=F3,'Plan and Building Inputs'!C5="New",IFERROR(MATCH(B3,$A$15:$A$26,0),0)),TRUE,FALSE) -> FALSE | H3: 1710 | I3: 855
A4: ='Plan and Building Inputs'!$C$4 -> 0 | B4: =+'Plan and Building Inputs'!$C$7 -> 0 | C4: =+'Plan and Building Inputs'!$C$32 -> 0 | D4: =+'Plan and Building Inputs'!$C$14 -> 0 | F4: Big Thompson | G4: =+IF(AND(C4=F4,'Plan and Building Inputs'!C6="New",IFERROR(MATCH(B4,$A$15:$A$26,0),0)),TRUE,FALSE) -> FALSE | H4: 1382 | I4: 946
F6: Output | H6: =IFERROR(IF(A3="Residential",VLOOKUP(TRUE, G3:I4, MATCH(TRUE, G1:I1, FALSE), FALSE)*D3, 0),0) -> 0
F11: =MATCH(B3,$A$15:$A$24) -> 
A15: Cabin (30% of single family detached)
A16: Duplex
A17: Extended Family (3 yr permit)
A18: Farmstead Accessory Living
A19: Hotel/Motel
A20: Mobile Home Park
A21: Multi-Family
A22: Single Family
A23: Mobile Home
A24: Manufactured Home
A25: Single Family - Attached
A26: Single Family - Detached

Sheet Stormwater (hidden)
A3: Site Sq. Ft | B3: Building Sq Ft | C3: ROW | D3: Parking/Drives/walks/patios | E3: Gravel | F3: Private O.S. | G3: Public O.S | H3: Gross: | I3: % Impervious | J3: % Gravel | K3: % Pervious | L3: Net Acres | M3: Net % Impervious | N3: Net % Semi-pervious | O3: Net % Pervious | P3: Cg | Q3: Cn | R3: Rate Factor | S3: Basin Rate: | T3: SW PIF: | U3: Review Charge:
A4: =+'Plan and Building Inputs'!C16 -> 0 | B4: =+'Plan and Building Inputs'!C17 -> 0 | C4: =+'Plan and Building Inputs'!C18 -> 0 | D4: =+'Plan and Building Inputs'!C19 -> 0 | E4: =+'Plan and Building Inputs'!C20 -> 0 | F4: =+'Plan and Building Inputs'!C21 -> 0 | G4: =+'Plan and Building Inputs'!C22 -> 0 | H4: =SUM(B4:G4) -> 0 | I4: =IFERROR(SUM(B4+C4+D4)/A4,0) -> 0 | J4: =+IFERROR(E4/A4,0) -> 0 | K4: =IFERROR((F4+G4)/A4,0) -> 0 | L4: =A4-C4 -> 0 | M4: =IFERROR(SUM(B4+D4)/L4,0) -> 0 | N4: =IFERROR(E4/L4,0) -> 0 | O4: =IFERROR(SUM(F4+G4)/L4,0) -> 0 | P4: =SUM(I4*0.95)+(J4*0.5)+(K4*0.2) -> 0 | Q4: =(M4*0.95)+(N4*0.05)+(O4*0.2) -> 0 | R4: =IF(M4<=0.3, 0.25, IF(AND(M4>0.31, M4<=0.5), 0.4, IF(AND(M4>0.51, M4<=0.7), 0.6, IF(AND(M4>0.71, M4<=0.9), 0.8, 0.95)))) -> 0.25 | S4: =+B7/D7 -> 0.1886363636 | T4: =A4*(B7/D7)*R4 -> 0 | U4: =(A24/B24)*L4*$R$4 -> 0
B6: Base rate | D6: Sq feet per acre
B7: 8217 | D7: 43560
A21: https://www.fcgov.com/utilities/img/site_specific/uploads/2018_Stormwater_PIF_2018.pdf
A23: Stormwater constant | B23: Sq feet per acre
A24: 1045 | B24: 43560
A26: https://www.fcgov.com/utilities/img/site_specific/uploads/2017_WaterWastewaterand_Stormwater_Review_Charges_.pdf

Sheet Water WW (hidden)
A2: Residential Calculations
A3: Type | B3: Sub Type | C3: Tap Size | D3: Water Meters needed | E3: Lot Area | F3: Bedrooms | G3: Units | H3: Peak GPD | I3: BOD | J3: TSS | K3: Peak Annual | L3: I&I Flow | M3: Sub-Type City of Fort Collins | N3: Water Meter Size | O3: T/F | P3: Water PIF | Q3: WSR (Ac-Ft) | R3: WSR (Cash) | S3: Meter Cost | T3: Water Dev Rev | U3: WW PIF | V3: WW Dev Rev | W3: Total
A4: =+'Plan and Building Inputs'!$C$4 -> 0 | B4: =+'Plan and Building Inputs'!$C$7 -> 0 | C4: =+'Plan and Building Inputs'!$C$24 -> 0 | D4: =+'Plan and Building Inputs'!$C$25 -> 0 | E4: =+'Plan and Building Inputs'!$C$16 -> 0 | F4: =+'Plan and Building Inputs'!$C$13 -> 0 | G4: =+'Plan and Building Inputs'!$C$14 -> 0 | M4: Single Family - Attached | O4: =IF( A4="Residential", B4=M4,C4=N4) -> TRUE | P4: =IF(O4=TRUE,_xlfn.IFS(AND(LEFT(B4,6)="Single",C4=$N$22),P22+0.33*E4,AND(LEFT(B4,6)="Single",C4=$N$23),P23+0.33*E4),0) ->  | Q4: =IF(O4=TRUE,(((7.048*E4)+(12216.9*F4))/325851)*1.92,0) -> 0 | R4: =Q4*R24 -> 0 | S4: =IF(O4=TRUE,_xlfn.IFS(AND(M4=B4,C4=N22),S22,AND(B4=M4,C4=N23),S23),0) ->  | T4: =IF(O4=TRUE,T23*G4,0) -> 0 | U4: =+IF(O4=TRUE,(G4*U22),0) -> 0 | V4: =IF(O4=TRUE,T23*G4,0) -> 0 | W4: =SUM(R4:V4,P4) -> 
A5: =+'Plan and Building Inputs'!$C$4 -> 0 | B5: =+'Plan and Building Inputs'!$C$7 -> 0 | C5: =+'Plan and Building Inputs'!$C$24 -> 0 | D5: =+'Plan and Building Inputs'!$C$25 -> 0 | E5: =+'Plan and Building Inputs'!$C$16 -> 0 | F5: =+'Plan and Building Inputs'!$C$13 -> 0 | G5: =+'Plan and Building Inputs'!$C$14 -> 0 | M5: Duplex | O5: =IF( A5="Residential", B5=M5,C5=N5) -> TRUE | P5: =IF(O5=TRUE,(540*G5)+E5*0.24,0) -> 0 | Q5: =IF(O5=TRUE,(((7.048*E5)+(12216.9*F5))/325851)*1.92,0) -> 0 | R5: =+Q5*R24 -> 0 | S5: =IF(O5=TRUE,_xlfn.IFS(AND(M5=B5,C5=N24),S24,AND(B5=M5,C5=N25),S25),0) ->  | T5: =IF(O5=TRUE,T24*G5,0) -> 0 | U5: =IF(O5=TRUE,U24*G5,0) -> 0 | V5: =IF(O5=TRUE,T24*G5,0) -> 0 | W5: =SUM(R5:V5,P5) -> 
A6: =+'Plan and Building Inputs'!$C$4 -> 0 | B6: =+'Plan and Building Inputs'!$C$7 -> 0 | C6: =+'Plan and Building Inputs'!$C$24 -> 0 | D6: =+'Plan and Building Inputs'!$C$25 -> 0 | E6: =+'Plan and Building Inputs'!$C$16 -> 0 | F6: =+'Plan and Building Inputs'!$C$13 -> 0 | G6: =+'Plan and Building Inputs'!$C$14 -> 0 | M6: Multi-Family | O6: TRUE | P6: =IF(O6=TRUE,(540*G6)+E6*0.24,0) -> 0 | Q6: 0 | R6: =+Q6*$R$24 -> 0 | S6: =IF(O6=TRUE,_xlfn.IFS(AND(M6=B6,C6=N25),S25,AND(B6=M6,C6=N22),S22),0) ->  | T6: =IF(O6=TRUE,T25*G6,0) -> 0 | U6: =IF(O6=TRUE,U25*G6,0) -> 0 | V6: 0 | W6: =SUM(R6:V6,P6) -> 
A8: Non Residential Calculation
A9: Type | B9: Sub Type | C9: Tap Size | D9: Water Meters needed | E9: Lot Area | F9: Bedrooms | G9: Units | H9: Peak GPD | I9: BOD | J9: TSS | K9: Peak Annual | L9: I&I Flow | M9: Sub-Type City of Fort Collins | N9: Water Meter Size | O9: T/F | P9: Water PIF | Q9: WSR (Ac-Ft) | R9: WSR (Cash) | S9: Meter Cost | T9: Water Dev Rev | U9: WW PIF | V9: WW Dev Rev | W9: Total
A10: =+'Plan and Building Inputs'!$C$4 -> 0 | B10: =+'Plan and Building Inputs'!$C$7 -> 0 | C10: =+'Plan and Building Inputs'!$C$24 -> 0 | D10: =+'Plan and Building Inputs'!$C$25 -> 0 | E10: =+'Plan and Building Inputs'!$C$16 -> 0 | F10: =+'Plan and Building Inputs'!$C$13 -> 0 | G10: =+'Plan and Building Inputs'!$C$14 -> 0 | M10: Non-Residential | N10: 3/4 inch | O10: =IF( A10="Residential", B10=M10,C10=N10) -> FALSE | P10: =IF(O10=TRUE,P26,0) -> 0 | Q10: =+IF(O10=TRUE,(Q26),0) -> 0 | R10: =IF(O10=TRUE,(Q10*$R$24),0) -> 0 | S10: =IF(O10=TRUE,S26,0) -> 0 | T10: =IF(O10=TRUE,T26*G10,0) -> 0 | U10: =IF(O10=TRUE,(G10*U26),0) -> 0 | V10: =IF(O10=TRUE,T26*G10,0) -> 0 | W10: =SUM(R10:V10,P10) -> 0
A11: =+'Plan and Building Inputs'!$C$4 -> 0 | B11: =+'Plan and Building Inputs'!$C$7 -> 0 | C11: =+'Plan and Building Inputs'!$C$24 -> 0 | D11: =+'Plan and Building Inputs'!$C$25 -> 0 | E11: =+'Plan and Building Inputs'!$C$16 -> 0 | F11: =+'Plan and Building Inputs'!$C$13 -> 0 | G11: =+'Plan and Building Inputs'!$C$14 -> 0 | M11: Non-Residential | N11: 1 inch | O11: FALSE | P11: =IF(O11=TRUE,P27,0) -> 0 | Q11: =+IF(O11=TRUE,(Q27),0) -> 0 | R11: 0 | S11: 0 | T11: =IF(O11=TRUE,T27*G11,0) -> 0 | U11: =IF(O11=TRUE,(G11*U27),0) -> 0 | V11: =IF(O11=TRUE,T27*G11,0) -> 0 | W11: 0
A12: =+'Plan and Building Inputs'!$C$4 -> 0 | B12: =+'Plan and Building Inputs'!$C$7 -> 0 | C12: =+'Plan and Building Inputs'!$C$24 -> 0 | D12: =+'Plan and Building Inputs'!$C$25 -> 0 | E12: =+'Plan and Building Inputs'!$C$16 -> 0 | F12: =+'Plan and Building Inputs'!$C$13 -> 0 | G12: =+'Plan and Building Inputs'!$C$14 -> 0 | M12: Non-Residential | N12: 1-1/2 inch | O12: FALSE | P12: =IF(O12=TRUE,P28,0) -> 0 | Q12: =+IF(O12=TRUE,(Q28),0) -> 0 | R12: 0 | S12: 0 | T12: 0 | U12: 0 | V12: 0 | W12: 0
A13: =+'Plan and Building Inputs'!$C$4 -> 0 | B13: =+'Plan and Building Inputs'!$C$7 -> 0 | C13: =+'Plan and Building Inputs'!$C$24 -> 0 | D13: =+'Plan and Building Inputs'!$C$25 -> 0 | E13: =+'Plan and Building Inputs'!$C$16 -> 0 | F13: =+'Plan and Building Inputs'!$C$13 -> 0 | G13: =+'Plan and Building Inputs'!$C$14 -> 0 | M13: Non-Residential | N13: 2 inch | O13: FALSE | P13: =IF(O13=TRUE,P29,0) -> 0 | Q13: =+IF(O13=TRUE,(Q29),0) -> 0 | R13: 0 | S13: 0 | T13: 0 | U13: 0 | V13: 0 | W13: 0
A14: =+'Plan and Building Inputs'!$C$4 -> 0 | B14: =+'Plan and Building Inputs'!$C$7 -> 0 | C14: =+'Plan and Building Inputs'!$C$24 -> 0 | D14: =+'Plan and Building Inputs'!$C$25 -> 0 | E14: =+'Plan and Building Inputs'!$C$16 -> 0 | F14: =+'Plan and Building Inputs'!$C$13 -> 0 | G14: =+'Plan and Building Inputs'!$C$14 -> 0 | H14: =+'Plan and Building Inputs'!$C$26 -> 0 | I14: =+'Plan and Building Inputs'!$C$27 -> 0 | J14: =+'Plan and Building Inputs'!$C$28 -> 0 | K14: =+H14*365 -> 0 | L14: =+H14*0.465 -> 0 | M14: Non-Residential | N14: 3 inch | O14: FALSE | P14: =IF(O14=TRUE,(4.66*H14),0) -> 0 | Q14: =IF(O14=TRUE,(K14*1.92/325851),0) -> 0 | R14: 0 | S14: 0 | T14: 0 | U14: =+(H14*($B$21+(I14*$B$22)+(J14*$B$23)))+(L14*($B$21+(I14*$B$22)+(J14*$B$23))) -> 0 | V14: 0 | W14: 0
A15: =+'Plan and Building Inputs'!$C$4 -> 0 | B15: =+'Plan and Building Inputs'!$C$7 -> 0 | C15: =+'Plan and Building Inputs'!$C$24 -> 0 | D15: =+'Plan and Building Inputs'!$C$25 -> 0 | E15: =+'Plan and Building Inputs'!$C$16 -> 0 | F15: =+'Plan and Building Inputs'!$C$13 -> 0 | G15: =+'Plan and Building Inputs'!$C$14 -> 0 | H15: =+'Plan and Building Inputs'!$C$26 -> 0 | I15: =+'Plan and Building Inputs'!$C$27 -> 0 | J15: =+'Plan and Building Inputs'!$C$28 -> 0 | K15: =+H15*365 -> 0 | L15: =+H15*0.465 -> 0 | M15: Non-Residential | N15: 4 inch | O15: FALSE | P15: =IF(O15=TRUE,(4.66*H15),0) -> 0 | Q15: =IF(O15=TRUE,(K15*1.92/325851),0) -> 0 | R15: 0 | S15: 0 | T15: 0 | U15: =+(H15*($B$21+(I15*$B$22)+(J15*$B$23)))+(L15*($B$21+(I15*$B$22)+(J15*$B$23))) -> 0 | V15: 0 | W15: 0
P17: Water PIF | Q17: WSR (Ac-Ft) | R17: WSR (Cash) | S17: Meter Cost | T17: Water Dev Rev | U17: WW PIF | V17: WW Dev Rev | W17: Total
M18: Output | O18: TRUE | P18: =IFERROR(VLOOKUP($O18, $O$4:$W$15, MATCH(P17, $O$3:$W$3,FALSE),FALSE),) -> 0 | Q18: 0 | R18: 0 | S18: 0 | T18: 0 | U18: 0 | V18: 0 | W18: 0
A20: Rates | M20: Residential
A21: Flow $ | B21: 8.76 | M21: Sub-Type City of Fort Collins | N21: Water Meter Size | P21: Water PIF | Q21: Minimum WSR Acre-feet) | R21: WSR (Cash) per Ac-Ft flat rate | S21: Water Meter | T21: Water/WW Dev Rev | U21: WW PIF | V21: Water Meter
A22: BOD $ | B22: 0.013 | M22: Single Family | N22: 3/4 inch | P22: 720 | Q22: calculation given | S22: 350.02 | T22: 53 | U22: 3500 | V22: 694.31
A23: TSS $ | B23: 0.0104 | M23: Single Family | N23: 1 inch | P23: 1220 | Q23: calculation given | S23: 389.7 | T23: 53 | U23: 3500 | V23: 789.82
M24: Duplex | N24: 3/4 inch | P24: 540 | Q24: calculation given | R24: 17300 | S24: 350.02 | T24: 43 | U24: 2520 | V24: 350.02
A25: Waste Water PIF | M25: Multi-Family | N25: 1 inch | P25: 540 | Q25: calculation given | S25: 389.7 | T25: 43 | U25: 2520 | V25: 389.7
M26: Non-Residential | N26: 3/4 inch | P26: 7180 | Q26: 0.9 | S26: 350.02 | T26: 128 | U26: 7130
M27: Non-Residential | N27: 1 inch | P27: 19710 | Q27: 2.27 | S27: 389.7 | T27: 333 | U27: 17200
M28: Non-Residential | N28: 1-1/2 inch | P28: 42220 | Q28: 4.72 | S28: 694.31 | T28: 658 | U28: 33410
M29: Non-Residential | N29: 2 inch | P29: 66680 | Q29: 7.91 | S29: 789.82 | T29: 965 | U29: 59140
M30: Non-Residential | N30: 3 inch | P30: Based on use | Q30: Based on use | S30: 2637.76 | T30: 2020
M31: Non-Residential | N31: 4 inch | P31: Based on use | Q31: Based on use | S31: 3358.88 | T31: 2020
A35: Below are the parameters given for the fee calculations above as well as the locations of each file | L35: Water PIF
U38: Water Supply Requirment
U52: https://www.fcgov.com/utilities/img/site_specific/uploads/Non_Res_WSR_Schedule_2018_a.pdf
L55: https://www.fcgov.com/utilities/img/site_specific/uploads/2018_Water_PIF_2018.pdf
U69: https://www.fcgov.com/utilities/img/site_specific/uploads/Res_WSR_Schedule_2018.pdf
A77: https://www.fcgov.com/utilities/img/site_specific/uploads/2018_Wastewater_PIF_2018.pdf
R103: https://www.fcgov.com/utilities/img/site_specific/uploads/2018_Wastewater_PIF_2018.pdf

Sheet Capital Expansion (hidden)
A3: Input | B3: Type | C3: Input | D3: Units | E3: Type | F3: Land Use Type | G3: Unit | H3: Area Test | I3: Type Test | J3: Dwelling test | K3: New/Addition | L3: Cap Expansion Test | M3: Parkland: Neighborhood | N3: Parkland: Community | O3: Fire Capital Exp | P3: Police Capital Exp | Q3: General Govt. Capt. Exp. | R3: Transportation Capital Expansion
A4: =+'Plan and Building Inputs'!$C$4 -> 0 | B4: =+'Plan and Building Inputs'!$C$5 -> 0 | C4: =+'Plan and Building Inputs'!$C$11 -> 0 | D4: =+'Plan and Building Inputs'!$C$14 -> 0 | E4: Residential | F4: Resid., up to 700 sf | G4: Dwelling | H4: =C4<=700 -> TRUE | I4: =A4=E4 -> FALSE | J4: =IF(AND(A4="Residential",'Plan and Building Inputs'!$C$13>0,'Without Subs (OTC Permits)'!$C$19=0),TRUE,FALSE) -> FALSE | K4: =IF(OR('Plan and Building Inputs'!$C$5="New",'Plan and Building Inputs'!$C$5="Addition"),TRUE,FALSE) -> FALSE | L4: =IF(AND(H4=TRUE,I4=TRUE,J4=TRUE),TRUE,FALSE) -> FALSE | M4: 1647 | N4: 2326 | O4: 403 | P4: 226 | Q4: 549 | R4: 2321
A5: =+'Plan and Building Inputs'!$C$4 -> 0 | B5: =+'Plan and Building Inputs'!$C$5 -> 0 | C5: =+'Plan and Building Inputs'!$C$11 -> 0 | D5: =+'Plan and Building Inputs'!$C$14 -> 0 | E5: Residential | F5: Resid., 701-1,200 sf | G5: Dwelling | H5: =AND(C5>701, C5<=1200) -> FALSE | I5: =A5=E5 -> FALSE | J5: =IF(AND(A5="Residential",'Plan and Building Inputs'!$C$13>0,'Without Subs (OTC Permits)'!$C$19=0),TRUE,FALSE) -> FALSE | K5: =IF(OR('Plan and Building Inputs'!$C$5="New",'Plan and Building Inputs'!$C$5="Addition"),TRUE,FALSE) -> FALSE | L5: =IF(AND(H5=TRUE,I5=TRUE,J5=TRUE),TRUE,FALSE) -> FALSE | M5: 2205 | N5: 3114 | O5: 546 | P5: 305 | Q5: 741 | R5: 4310
A6: =+'Plan and Building Inputs'!$C$4 -> 0 | B6: =+'Plan and Building Inputs'!$C$5 -> 0 | C6: =+'Plan and Building Inputs'!$C$11 -> 0 | D6: =+'Plan and Building Inputs'!$C$14 -> 0 | E6: Residential | F6: Resid., 1,201-1,700 sf | G6: Dwelling | H6: =AND(C6>1201, C6<=1700) -> FALSE | I6: FALSE | J6: =IF(AND(A6="Residential",'Plan and Building Inputs'!$C$13>0,'Without Subs (OTC Permits)'!$C$19=0),TRUE,FALSE) -> FALSE | K6: =IF(OR('Plan and Building Inputs'!$C$5="New",'Plan and Building Inputs'!$C$5="Addition"),TRUE,FALSE) -> FALSE | L6: FALSE | M6: 2408 | N6: 3400 | O6: 593 | P6: 332 | Q6: 809 | R6: 5596
A7: =+'Plan and Building Inputs'!$C$4 -> 0 | B7: =+'Plan and Building Inputs'!$C$5 -> 0 | C7: =+'Plan and Building Inputs'!$C$11 -> 0 | D7: =+'Plan and Building Inputs'!$C$14 -> 0 | E7: Residential | F7: Resid., 1,701-2,200 sf | G7: Dwelling | H7: =AND(C7>1701, C7<=2200) -> FALSE | I7: FALSE | J7: =IF(AND(A7="Residential",'Plan and Building Inputs'!$C$13>0,'Without Subs (OTC Permits)'!$C$19=0),TRUE,FALSE) -> FALSE | K7: =IF(OR('Plan and Building Inputs'!$C$5="New",'Plan and Building Inputs'!$C$5="Addition"),TRUE,FALSE) -> FALSE | L7: FALSE | M7: 2433 | N7: 3436 | O7: 603 | P7: 337 | Q7: 821 | R7: 6543
A8: =+'Plan and Building Inputs'!$C$4 -> 0 | B8: =+'Plan and Building Inputs'!$C$5 -> 0 | C8: =+'Plan and Building Inputs'!$C$11 -> 0 | D8: =+'Plan and Building Inputs'!$C$14 -> 0 | E8: Residential | F8: Resid., over 2,200 sf | G8: Dwelling | H8: =C8>2200 -> FALSE | I8: FALSE | J8: =IF(AND(A8="Residential",'Plan and Building Inputs'!$C$13>0,'Without Subs (OTC Permits)'!$C$19=0),TRUE,FALSE) -> FALSE | K8: =IF(OR('Plan and Building Inputs'!$C$5="New",'Plan and Building Inputs'!$C$5="Addition"),TRUE,FALSE) -> FALSE | L8: FALSE | M8: 2712 | N8: 3830 | O8: 671 | P8: 375 | Q8: 914 | R8: 7014
A9: =+'Plan and Building Inputs'!$C$4 -> 0 | B9: =+'Plan and Building Inputs'!$C$5 -> 0 | C9: =+'Plan and Building Inputs'!$C$11 -> 0 | D9: =+'Plan and Building Inputs'!$C$14 -> 0 | E9: Commercial (Single Phase) | F9: Commercial (Single Phase) | G9: 1,000 sf | H9: =+C9/1000 -> 0 | I9: FALSE | J9: =IF(AND(A9="Residential",'Plan and Building Inputs'!$C$13>0,'Without Subs (OTC Permits)'!$C$19=0),TRUE,FALSE) -> FALSE | K9: =IF(OR('Plan and Building Inputs'!$C$5="New",'Plan and Building Inputs'!$C$5="Addition"),TRUE,FALSE) -> FALSE | L9: FALSE | M9: 0 | N9: 0 | O9: 508 | P9: 284 | Q9: 1389 | R9: 8539
A10: =+'Plan and Building Inputs'!$C$4 -> 0 | B10: =+'Plan and Building Inputs'!$C$5 -> 0 | C10: =+'Plan and Building Inputs'!$C$11 -> 0 | D10: =+'Plan and Building Inputs'!$C$14 -> 0 | E10: Office and Other Services (3-phase) | F10: Office and Other Services (3-phase) | G10: 1,000 sf | H10: =+C10/1000 -> 0 | I10: FALSE | J10: =IF(AND(A10="Residential",'Plan and Building Inputs'!$C$13>0,'Without Subs (OTC Permits)'!$C$19=0),TRUE,FALSE) -> FALSE | K10: =IF(OR('Plan and Building Inputs'!$C$5="New",'Plan and Building Inputs'!$C$5="Addition"),TRUE,FALSE) -> FALSE | L10: FALSE | M10: 0 | N10: 0 | O10: 508 | P10: 284 | Q10: 1389 | R10: 6291
A11: =+'Plan and Building Inputs'!$C$4 -> 0 | B11: =+'Plan and Building Inputs'!$C$5 -> 0 | C11: =+'Plan and Building Inputs'!$C$11 -> 0 | D11: =+'Plan and Building Inputs'!$C$14 -> 0 | E11: Industrial/Warehouse (Large Comm) | F11: Industrial/Warehouse (Large Comm) | G11: 1,000 sf | H11: =+C11/1000 -> 0 | I11: FALSE | J11: =IF(AND(A11="Residential",'Plan and Building Inputs'!$C$13>0,'Without Subs (OTC Permits)'!$C$19=0),TRUE,FALSE) -> FALSE | K11: =IF(OR('Plan and Building Inputs'!$C$5="New",'Plan and Building Inputs'!$C$5="Addition"),TRUE,FALSE) -> FALSE | L11: FALSE | M11: 0 | N11: 0 | O11: 119 | P11: 66 | Q11: 327 | R11: 2030
L14: Output | M14: =IFERROR(IF('Plan and Building Inputs'!$C$4="Residential",VLOOKUP(TRUE,$L$3:$R$11,2,FALSE)*D4,VLOOKUP(TRUE,$L$3:$R$11,2,FALSE)*'Capital Expansion'!$H$9),0) -> 0 | N14: =IFERROR(IF('Plan and Building Inputs'!$C$4="Residential",VLOOKUP(TRUE,$L$3:$R$11,3,FALSE)*D4,VLOOKUP(TRUE,$L$3:$R$11,3,FALSE)*'Capital Expansion'!$H$9),0) -> 0 | O14: =IFERROR(IF('Plan and Building Inputs'!$C$4="Residential",VLOOKUP(TRUE,$L$3:$R$11,4,FALSE)*D4,VLOOKUP(TRUE,$L$3:$R$11,4,FALSE)*'Capital Expansion'!$H$9),0) -> 0 | P14: =IFERROR(IF('Plan and Building Inputs'!$C$4="Residential",VLOOKUP(TRUE,$L$3:$R$11,5,FALSE)*D4,VLOOKUP(TRUE,$L$3:$R$11,5,FALSE)*'Capital Expansion'!$H$9),0) -> 0 | Q14: =IFERROR(IF('Plan and Building Inputs'!$C$4="Residential",VLOOKUP(TRUE,$L$3:$R$11,6,FALSE)*D4,VLOOKUP(TRUE,$L$3:$R$11,6,FALSE)*'Capital Expansion'!$H$9),0) -> 0 | R14: =IFERROR(IF('Plan and Building Inputs'!$C$4="Residential",VLOOKUP(TRUE,$L$3:$R$11,7,FALSE)*D4,VLOOKUP(TRUE,$L$3:$R$11,7,FALSE)*'Capital Expansion'!$H$9),0) -> 0
A38: https://www.fcgov.com/finance/capitalexpansion.php

Sheet Reference -> (hidden)
A1: Fee Type | C1: Evaluation Criteria | D1: Fee | E1: Location
A2: Plan check fee - Plan Review | C2: $1 to $3,000 | D2: $0 - No plan review fee for valuations $3,000 and under | E2: https://www.fcgov.com/building/fees.php
A3: Plan check fee - Plan Review | C3: $3,001 to 25,000 | D3: $66.25 for first $2,000 plus $10.25 for each additional $1,000 or fraction thereof Take this total times 0.65 | E3: https://www.fcgov.com/building/fees.php
A4: Plan check fee - Plan Review | C4: $25,001 to $50,000 | D4: $302 for the first $25,000 plus $8.50 for each additional $1,000 or fraction thereof Take this total times 0.65 | E4: https://www.fcgov.com/building/fees.php
A5: Plan check fee - Plan Review | C5: $50,001 to$100,000 | D5: $514.50 for the first $50,000 plus $6.00 for each additional $1,000 or fraction thereof Take this total times 0.65 | E5: https://www.fcgov.com/building/fees.php
A6: Plan check fee - Plan Review | C6: $100,001 to $500,000 | D6: $814.50 for the first $100,000 plus $4.00 for each additional $1,000 or fraction thereof Take this total times 0.65 | E6: https://www.fcgov.com/building/fees.php
A7: Plan check fee - Plan Review | C7: $500,001 to $1,000,000 | D7: $2,414.50 for the first $500,000 plus $3.50 for each additional $1,000 or fraction thereof Take this total times 0.65 | E7: https://www.fcgov.com/building/fees.php
A8: Plan check fee - Plan Review | C8: $1,000,001 to $10,000,000 | D8: $4,164.50 for the first $1,000,000 plus $2.50 for each additional $1,000 or fraction thereof Take this total times 0.65 | E8: https://www.fcgov.com/building/fees.php
A9: Plan check fee - Plan Review | C9: $10,000,001 and up | D9: $26,664.50 for the first $10,000,000 plus $1.00 for each additional $1,000 or fraction thereof Take this total times 0.65 | E9: https://www.fcgov.com/building/fees.php
A10: Building permit fee w/ subs | C10: $1 to $500 | D10: 25 | E10: https://www.fcgov.com/building/fee-calc-2012.php
A11: Building permit fee w/ subs | C11: $501 to $2,000 | D11: $25 for the first $500 plus $2.75 for each additional $100 or fraction thereof | E11: https://www.fcgov.com/building/fee-calc-2012.php
A12: Building permit fee w/ subs | C12: $2,001 to 25,000 | D12: $66.25 for first $2,000 plus $10.25 for each additional $1,000 or fraction thereof Take this total times 0.65 | E12: https://www.fcgov.com/building/fee-calc-2012.php
A13: Building permit fee w/ subs | C13: $25,001 to $50,000 | D13: $302 for the first $25,000 plus $8.50 for each additional $1,000 or fraction thereof Take this total times 1.35 | E13: https://www.fcgov.com/building/fee-calc-2012.php
A14: Building permit fee w/ subs | C14: $50,001 to$100,000 | D14: $514.50 for the first $50,000 plus $6.00 for each additional $1,000 or fraction thereof Take this total times 1.35 | E14: https://www.fcgov.com/building/fee-calc-2012.php
A15: Building permit fee w/ subs | C15: $100,001 to $500,000 | D15: $814.50 for the first $100,000 plus $4.00 for each additional $1,000 or fraction thereof Take this total times 1.35 | E15: https://www.fcgov.com/building/fee-calc-2012.php
A16: Building permit fee w/ subs | C16: $500,001 to $1,000,000 | D16: $2,414.50 for the first $500,000 plus $3.50 for each additional $1,000 or fraction thereof Take this total times 1.35 | E16: https://www.fcgov.com/building/fee-calc-2012.php
A17: Building permit fee w/ subs | C17: $1,000,001 to $10,000,000 | D17: $4,164.50 for the first $1,000,000 plus $2.50 for each additional $1,000 or fraction thereof Take this total times 1.35 | E17: https://www.fcgov.com/building/fee-calc-2012.php
A18: Building permit fee w/ subs | C18: $10,000,001 and up | D18: $26,664.50 for the first $10,000,000 plus $1.00 for each additional $1,000 or fraction thereof Take this total times 1.35 | E18: https://www.fcgov.com/building/fee-calc-2012.php
A19: City Sales/Use Tax | D19: 3.85% on 1/2 total construction value | E19: https://www.fcgov.com/salestax/tax-rates.php
A20: Larimer County Sales/Use Tax | D20: 0.55% on 1/2 total construction value | E20: https://www.larimer.org/finance/sales-tax
A21: FF Building permit fee w/subs | D21: Contractor gives value of FF, this number is then subtracted from full valuation and amount of fee is calculated. Do not take 1/2 total construction value when figuring. Use full valuation. | E21: https://www.fcgov.com/building/fee-calc-2012.php
A22: FF City Sales/Use Tax | D22: Contractor gives values of FF. We multipy that value at 3.85% to get tax owing. | E22: https://www.fcgov.com/salestax/tax-rates.php
A23: FF County Sales/Use Tax | D23: Contractor gives values of FF. We multipy that value at 0.55% to get tax owing. | E23: https://www.larimer.org/finance/sales-tax
A24: Fire CIE - Commercial single phase and Office and Other Services (3-phase) | D24: $475 per 1,000 sf | E24: https://www.fcgov.com/finance/capitalexpansion.php
A25: Police CIE - Commercial single phase and Office and Other Services (3-phase) | D25: $223 per 1,000 sf | E25: https://www.fcgov.com/finance/capitalexpansion.php
A26: Gen Govt. - CIE- Commercial single phase and Office and Other Services (3-phase) | D26: $1,088 per 1,000 sf | E26: https://www.fcgov.com/finance/capitalexpansion.php
A27: Transportation CIE - Commercial single phase | D27: $6,721 per 1,000 sf | E27: https://www.fcgov.com/finance/capitalexpansion.php
A28: Transportation CIE - Office and Other Services (3-phase) | D28: $4,951 per 1,000 sf | E28: https://www.fcgov.com/finance/capitalexpansion.php
A29: Fire CIE - Industrial/Warehouse (Large Commercial) | D29: $111 per 1,000 sf | E29: https://www.fcgov.com/finance/capitalexpansion.php
A30: Police CIE - Industiral/Warehouse (Large Commerical) | D30: $52 per 1,000 sf | E30: https://www.fcgov.com/finance/capitalexpansion.php
A31: Gen Govt. CIE - Industrial/Warehouse (Large Commercial) | D31: $257 per 1,000 sf | E31: https://www.fcgov.com/finance/capitalexpansion.php
A32: Transportation CIE - Industrial/Warhousre (Large Commercial) | D32: $1,598 per 1,000 sf | E32: https://www.fcgov.com/finance/capitalexpansion.php
A33: Larimer County Regional Road - Retail/Commercial | C33: Auto Sales (& Specialty Retail) | D33: $6,231 per 1,000 sf | E33: https://www.larimer.org/sites/default/files/uploads/2017/2015_county_tcef_schedule_form.pdf
A34: Larimer County Regional Road - Retail/Commercial | C34: Auto Service/Repair/Tire Store | D34: $3,804 per 1,000 sf | E34: https://www.larimer.org/sites/default/files/uploads/2017/2015_county_tcef_schedule_form.pdf
A35: Larimer County Regional Road - Retail/Commercial | C35: Bank 1,000 sq ft | D35: $19,947 per 1,000 sf | E35: https://www.larimer.org/sites/default/files/uploads/2017/2015_county_tcef_schedule_form.pdf
A36: Larimer County Regional Road - Retail/Commercial | C36: Building Materials/Hardware/Nursery | D36: $8,670 per 1,000 sf | E36: https://www.larimer.org/sites/default/files/uploads/2017/2015_county_tcef_schedule_form.pdf
A37: Larimer County Regional Road - Retail/Commercial | C37: Convenience Store | D37: $50,899 per 1,000 sf | E37: https://www.larimer.org/sites/default/files/uploads/2017/2015_county_tcef_schedule_form.pdf
A38: Larimer County Regional Road - Retail/Commercial | C38: Discount Store | D38: $6,269 per 1,000 sf | E38: https://www.larimer.org/sites/default/files/uploads/2017/2015_county_tcef_schedule_form.pdf
A39: Larimer County Regional Road - Retail/Commercial | C39: Furniture Store | D39: $1,364 per 1,000 sf | E39: https://www.larimer.org/sites/default/files/uploads/2017/2015_county_tcef_schedule_form.pdf
A40: Larimer County Regional Road - Retail/Commercial | C40: General Retail <100,000 sq ft | D40: $12,425 per 1,000 sf | E40: https://www.larimer.org/sites/default/files/uploads/2017/2015_county_tcef_schedule_form.pdf
A41: Larimer County Regional Road - Retail/Commercial | C41: General Retail 100,000-500,000 sq ft | D41: $8,812 per 1,000 sf | E41: https://www.larimer.org/sites/default/files/uploads/2017/2015_county_tcef_schedule_form.pdf
A42: Larimer County Regional Road - Retail/Commercial | C42: General Retail 500,000-1,000,000 sq ft | D42: $7,279 per 1,000 sf | E42: https://www.larimer.org/sites/default/files/uploads/2017/2015_county_tcef_schedule_form.pdf
A43: Larimer County Regional Road - Retail/Commercial | C43: General Retail > 1 million sq ft | D43: $5,850 per 1,000 sf | E43: https://www.larimer.org/sites/default/files/uploads/2017/2015_county_tcef_schedule_form.pdf
A44: Larimer County Regional Road - Retail/Commercial | C44: Movie Theater | D44: $21,067 per 1,000 sf | E44: https://www.larimer.org/sites/default/files/uploads/2017/2015_county_tcef_schedule_form.pdf
A45: Larimer County Regional Road - Retail/Commercial | C45: Restaurant, Fast Food | D45: $29,749 per 1,000 sf | E45: https://www.larimer.org/sites/default/files/uploads/2017/2015_county_tcef_schedule_form.pdf
A46: Larimer County Regional Road - Retail/Commercial | C46: Restaurant, Sit-Down | D46: $10,249 per 1,000 sf | E46: https://www.larimer.org/sites/default/files/uploads/2017/2015_county_tcef_schedule_form.pdf
A47: Larimer County Regional Road - Office/Institutuional | C47: Church/Synagogue | D47: $3,087 per 1,000 sf | E47: https://www.larimer.org/sites/default/files/uploads/2017/2015_county_tcef_schedule_form.pdf
A48: Larimer County Regional Road - Office/Institutuional | C48: Day Care Center | D48: $6,438 per 1,000 sf | E48: https://www.larimer.org/sites/default/files/uploads/2017/2015_county_tcef_schedule_form.pdf
A49: Larimer County Regional Road - Office/Institutuional | C49: Elementary/Scondary School | D49: $2,454 per 1,000 sf | E49: https://www.larimer.org/sites/default/files/uploads/2017/2015_county_tcef_schedule_form.pdf
A50: Larimer County Regional Road - Office/Institutuional | C50: Hospital | D50: $5,949 per 1,000 sf | E50: https://www.larimer.org/sites/default/files/uploads/2017/2015_county_tcef_schedule_form.pdf
A51: Larimer County Regional Road - Office/Institutuional | C51: Medial Office | D51: $12,230 per 1,000 sf | E51: https://www.larimer.org/sites/default/files/uploads/2017/2015_county_tcef_schedule_form.pdf
A52: Larimer County Regional Road - Office/Institutuional | C52: Nursing Home | D52: $2,102 per 1,000 sf | E52: https://www.larimer.org/sites/default/files/uploads/2017/2015_county_tcef_schedule_form.pdf
A53: Larimer County Regional Road - Office/Institutuional | C53: Office, General <100,000 sq ft | D53: $5,542 per 1,000 sf | E53: https://www.larimer.org/sites/default/files/uploads/2017/2015_county_tcef_schedule_form.pdf
A54: Larimer County Regional Road - Office/Institutuional | C54: Office, General >200,000 sq ft | D54: $4,309 per 1,000 sf | E54: https://www.larimer.org/sites/default/files/uploads/2017/2015_county_tcef_schedule_form.pdf
A55: Larimer County Regional Road - Office/Institutuional | C55: Office, General 100,000 - 200,000 sq ft | D55: $4,726 per 1,000 sf | E55: https://www.larimer.org/sites/default/files/uploads/2017/2015_county_tcef_schedule_form.pdf
A56: Larimer County Regional Road - Industrial | C56: General Light Industrial/Industrial Park | D56: $2,894 per 1,000 sf
A57: Larimer County Regional Road - Industrial | C57: Mini-Warehouse | D57: $1,040 per 1,000 sf
A58: Larimer County Regional Road - Industrial | C58: Warehouse | D58: $2,061 per 1,000 sf
A59: Electric - capacity (Commercial) | C59: 208 V single phase | E59: https://www.fcgov.com/utilities/business/builders-and-developers/plant-investment-development-fees/electric-development-fee-estimator?id=3 | F59: Charged seperately, prior to scheduling of construction; Dev. Rev. fees included in development fees
A60: Electric - capacity (Commercial) | C60: 204 V single phase | E60: https://www.fcgov.com/utilities/business/builders-and-developers/plant-investment-development-fees/electric-development-fee-estimator?id=3 | F60: Charged seperately, prior to scheduling of construction; Dev. Rev. fees included in development fees
A61: Electric - capacity (Commercial) | C61: 480 V single phase | E61: https://www.fcgov.com/utilities/business/builders-and-developers/plant-investment-development-fees/electric-development-fee-estimator?id=3 | F61: Charged seperately, prior to scheduling of construction; Dev. Rev. fees included in development fees
A62: Electric - capacity (Commercial) | C62: 208 V three phase | E62: https://www.fcgov.com/utilities/business/builders-and-developers/plant-investment-development-fees/electric-development-fee-estimator?id=3 | F62: Charged seperately, prior to scheduling of construction; Dev. Rev. fees included in development fees
A63: Electric - capacity (Commercial) | C63: 240 V three phase | E63: https://www.fcgov.com/utilities/business/builders-and-developers/plant-investment-development-fees/electric-development-fee-estimator?id=3 | F63: Charged seperately, prior to scheduling of construction; Dev. Rev. fees included in development fees
A64: Electric - capacity (Commercial) | C64: 480 V three phase | E64: https://www.fcgov.com/utilities/business/builders-and-developers/plant-investment-development-fees/electric-development-fee-estimator?id=3 | F64: Charged seperately, prior to scheduling of construction; Dev. Rev. fees included in development fees
A65: Electric - building site estimate | C65: # single phase transformers
A66: Electric - building site estimate | C66: #3 phase transformers
A67: Electric - building site estimate | C67: Trench distance from source to single phase transformer
A68: Electric - building site estimate | C68: Trench distance from source to three phase transformer
A69: Water PIF | E69: https://www.fcgov.com/utilities/img/site_specific/uploads/2018_Water_PIF_2018.pdf | F69: Paid upon issuance of building permit
A70: Water Dev. Rev. fee | C70: 3/4" | D70: 128 | E70: https://www.fcgov.com/utilities/img/site_specific/uploads/2017_WaterWastewaterand_Stormwater_Review_Charges_.pdf
A71: Water Dev. Rev. fee | C71: 1" | D71: 333
A72: Water Dev. Rev. fee | C72: 1-1/2" | D72: 658
A73: Water Dev. Rev. fee | C73: 2" | D73: 965
A74: Water Dev. Rev. fee | C74: 3" and greater | D74: 2020
A75: Water Meter Size | C75: 3/4" | D75: $7,530.02 = $7,180 water PIF + $350.02 water meter or $350.02 irrigation meter
A76: Water Meter Size | C76: 1" | D76: $20,099.70 = $19,710 water PIF + $389.70 water meter or $389.70 irrigation meter
A77: Water Meter Size | C77: 1-1/2" | D77: $42,914.31 = $42,220 water PIF + 694.31 water meter or $937.33 irrigation meter
A78: Water Meter Size | C78: 2" | D78: $67,469.82 = 66,650 water PIF + 789.82 water meter or $971.24 irrigation meter
A79: Water Meter Size | C79: 3" | D79: $ = Based on peak day demand + 2,637.76 water meter or $1,589.33 irrigation meter
A80: Water Meter Size | C80: 4" | D80: $ = Based on peak day demand + $3,358.88 water meter or $2n122.50 irrigation meter
A81: Water supply requirement | C81: 3/4" | D81: 0.900 min. WSR per acre foot or $15,570 cash, allotment per year 293,270 | E81: https://www.fcgov.com/utilities/img/site_specific/uploads/Non_Res_WSR_Schedule_2018_b.pdf | F81: If cash payment, paid at time of permit issuance otherwise due before water service permit issuance Up to 2" in diameter - if 3 and above, charged based on use *acre-foot = 325,851 gallons of water *Equivalent Cash payment $17,300/acre foot *Surcharge of $8.14 per 1,000 gallons assessed if over annual allotment
A82: Water supply requirement | C82: 1" | D82: 2.270 min. WSR per acre foot or $39,271 cash, allotment per year 739,680
A83: Water supply requirement | C83: 1-1/2" | D83: 4.720 min. WSR per acre foot or $81,656 cash, allotment per year 1,538,020
A84: Water supply requirement | C84: 2" | D84: 7.910 min. WSR per acre foot or $136,843 cash, allotment per year 2,577,480
A85: Water supply requirement | C85: 3" and above | D85: Based on use
C86: Wastewater PIF | E86: https://www.fcgov.com/utilities/img/site_specific/uploads/2018_Wastewater_PIF_2018.pdf | F86: Paid upon issuance of building permit
A87: Wastewater Dev. Rev. fee | C87: 3/4" | D87: 128 | E87: https://www.fcgov.com/utilities/img/site_specific/uploads/2017_WaterWastewaterand_Stormwater_Review_Charges_.pdf
A88: Wastewater Dev. Rev. fee | C88: 1" | D88: 333
A89: Wastewater Dev. Rev. fee | C89: 1-1/2" | D89: 658
A90: Wastewater Dev. Rev. fee | C90: 2" | D90: 965
A91: Wastewater Dev. Rev. fee | C91: 3" and greater | D91: 2020
A92: Wastewater PIF | C92: 3/4" water meter size | D92: 7130
A93: Wastewater PIF | C93: 1" water meter size | D93: 17200
A94: Wastewater PIF | C94: 1-1/2" water meter size | D94: 33410
A95: Wastewater PIF | C95: 2" water meter size | D95: 59140
A96: Wastewater PIF | C96: 3" and greater water meter size | D96: Calculated on an individual basis, but not less than the 2" charge
A97: Wastewater PIF surcharge (high strength)- full list available, examples below | B97: Fast Food Restaurant | C97: 3/4 | D97: 8748
A98: Wastewater PIF surcharge (high strength)- full list available, examples below | B98: Fast Food Restaurant | C98: 1" | D98: 21102
A99: Wastewater PIF surcharge (high strength)- full list available, examples below | B99: Fast Food Restaurant | C99: 1-1/2" | D99: 40997
A100: Wastewater PIF surcharge (high strength)- full list available, examples below | B100: Fast Food Restaurant | C100: 2" | D100: 72562
A101: Wastewater PIF surcharge (high strength)- full list available, examples below | B101: Restaurant | C101: 3/4 | D101: 12295
A102: Wastewater PIF surcharge (high strength)- full list available, examples below | B102: Restaurant | C102: 1" | D102: 29663
A103: Wastewater PIF surcharge (high strength)- full list available, examples below | B103: Restaurant | C103: 1-1/2" | D103: 57621
A104: Wastewater PIF surcharge (high strength)- full list available, examples below | B104: Restaurant | C104: 2" | D104: 101986
A105: Wastewater PIF surcharge (high strength)- full list available, examples below | B105: Commercial Laundry | C105: 3/4 | D105: 9335
A106: Wastewater PIF surcharge (high strength)- full list available, examples below | B106: Commercial Laundry | C106: 1" | D106: 22517
A107: Wastewater PIF surcharge (high strength)- full list available, examples below | B107: Commercial Laundry | C107: 1-1/2" | D107: 43745
A108: Wastewater PIF surcharge (high strength)- full list available, examples below | B108: Commercial Laundry | C108: 2" | D108: 77426
A109: Wastewater PIF surcharge (high strength)- full list available, examples below | B109: Car Wash | C109: 3/4 | D109: 7482
A110: Wastewater PIF surcharge (high strength)- full list available, examples below | B110: Car Wash | C110: 1" | D110: 18044
A111: Wastewater PIF surcharge (high strength)- full list available, examples below | B111: Car Wash | C111: 1-1/2" | D111: 35061
A112: Wastewater PIF surcharge (high strength)- full list available, examples below | B112: Car Wash | C112: 2" | D112: 62053
A113: Stormwater PIF | C113: 1 acre x $8,217 /acre x .8 = $6,573.60 (this is an example of 1-acre commercial site with heavy runoff) Gross Acres = Area of development in acres, including open space and right-of-way Base Rate = The base rate is $8,217 per gross acre for all area of the city Runoff Coefficient = Determined based on the percentage of impervious area PI = (Gross acres of development) x ($8,217) x (Runoff coefficient) | E113: https://www.fcgov.com/utilities/img/site_specific/uploads/2018_Stormwater_PIF_2018.pdf | F113: Applied when impervious surface area of more than 350 sq ft. Paid upon issuance of building permit
A114: Stormwater Dev. Rev. fee | C114: Rate factor x $1,045/acre x acres of net area | E114: https://www.fcgov.com/utilities/img/site_specific/uploads/2017_WaterWastewaterand_Stormwater_Review_Charges_.pdf | F114: Rate factor is determined by the percentage of impervious area (area that does not absorb water) in the development. Neta area includes allocated open space but excludes right of way.

Sheet Water (hidden)
A1: Water and Wastewater PIF's, WSR, and Dev Fees
A2: NOTE: NO REFLECTION TO ANY PROPOSED CHANGES IN PIFS - PLEASE VERIFY | P2: Plant Investment & Dev Fees: | T2: https://www.fcgov.com/utilities/business/builders-and-developers/plant-investment-development-fees
A3: WITH UTILITY FEE AND RATE SPECIALIST AT UtilityFees@fcgov.com or 970-416-4252 | P3: https://www.fcgov.com/utilities/utility-rates/
A4: ***********Changes to PIFs &/or Dev Rev Fees will be effective April 2018************ | P4: https://www.fcgov.com/utilities/manage-your-account/monitor-my-use/
E7: Water | F7: Water | I7: WW
A8: Lot Area | B8: Water | C8: WSR | D8: WSR | E8: Meter | F8: Dev Rev | G8: Water | H8: WW | I8: Dev Rev | J8: WW | K8: Water/WW
A9: (sq.ft.) | B9: PIF | C9: Ac-ft | D9: Cash | E9: Cost | F9: Fee | G9: Subtotal | H9: PIF | I9: Fee | J9: Subtotal | K9: Total Cost
L11: =43560/2 -> 21780
A12: Single Family Residential | L12: 1/2 acre max.
A13: Effective 01/01/2018
A14: For SFR: Enter Lot Sq Ft in A15 & Number of Bedrooms in L15 | L14: Bedrooms
B15: =720+A15*0.33 -> 720 | C15: =(((7.048*A15)+(12216.9*L15))/325851)*1.92 -> 0 | D15: =C15*17300 -> 0 | E15: 350.02 | F15: 53 | G15: =B15+D15+E15+F15 -> 1123.02 | H15: 3500 | I15: 53 | J15: =H15+I15 -> 3553 | K15: =G15+J15 -> 4676.02
B18: DUPLEX | E18: Enter Meter costs
A19: Effective 01/01/2018 | P19: acres | Q19: = | R19: =O19*43560 -> 0 | S19: sq ft
A20: For Duplex: Enter Lot Sq Ft in A27 , Number of Bedrooms in L27, & # of units in M27 | L20: Bedrooms | M20: Units
B21: =(540*M21)+A21*0.24 -> 0 | C21: =(((7.048*A21)+(12216.9*L21))/325851)*1.92 -> 0 | D21: =C21*17300 -> 0 | E21: 700.04 | F21: =43*M21 -> 0 | G21: =B21+D21+E21+F21 -> 700.04 | H21: =2520*M21 -> 0 | I21: =43*L21 -> 0 | J21: =H21+I21 -> 0 | K21: =G21+J21 -> 700.04
F22: Per Unit
B25: Multi-Family
A26: Effective 01/01/2018
A27: For MF: Enter Lot Sq Ft in A39 , # of bedrooms in L39, & # of units in M39 | L27: Bedrooms | M27: # of units
B28: =(540*M28)+A28*0.24 -> 0 | C28: =(((9.636*A28)+(13592.8*L28))/325851)*1.92 -> 0 | D28: =C28*17300 -> 0 | F28: =43*M28 -> 0 | G28: =B28+D28+E28+F28 -> 0 | H28: =2520*M28 -> 0 | I28: =43*L28 -> 0 | J28: =H28+I28 -> 0 | K28: =G28+J28 -> 0
E29: Enter Meter costs | F29: Per Unit
A30: Non-Residential
A31: Effective 01/01/2018
A32: Non-Residential
D33: WSR | E33: Water | F33: Water | I33: WW | L33: Annual
B34: Water | C34: RWR | D34: Cash | E34: Meter | F34: Dev Rev | G34: Water | H34: WW | I34: Dev Rev | J34: WW | K34: Water/WW | L34: Allotment
A35: Size | B35: PIF | C35: Ac-ft | D35: @$17,300 | E35: Cost | F35: Fee | G35: Subtotal | H35: PIF | I35: Fee | J35: Subtotal | K35: Total Cost | L35: (gallons)
O36: *separate meter required, per City Code, for commercial
A37: 3/4" | B37: 7180 | C37: 0.9 | D37: =C37*17300 -> 15570 | E37: 350.02 | F37: 128 | G37: =B37+D37+E37+F37 -> 23228.02 | H37: 7130 | I37: 128 | J37: =H37+I37 -> 7258 | K37: =G37+J37 -> 30486.02 | L37: 293270 | O37: buildings included in a Mixed Used Development
A38: 1" | B38: 19710 | C38: 2.27 | D38: =C38*17300 -> 39271 | E38: 389.7 | F38: 333 | G38: 59703.7 | H38: 17200 | I38: 333 | J38: =H38+I38 -> 17533 | K38: 77236.7 | L38: 739680 | O38: i.e. Clubhouse, residential units above retail space
A39: 1-1/2" | B39: 42220 | C39: 4.72 | D39: =C39*17300 -> 81656 | E39: 694.31 | F39: 658 | G39: 125228.31 | H39: 33410 | I39: 658 | J39: =H39+I39 -> 34068 | K39: 159296.31 | L39: 1538020
A40: 2" | B40: 66680 | C40: 7.91 | D40: =C40*17300 -> 136843 | E40: 789.82 | F40: 965 | G40: 205277.82 | H40: 59140 | I40: 965 | J40: =H40+I40 -> 60105 | K40: 265382.82 | L40: 2577480
A41: *3" | E41: 2637.76 | F41: 2020 | G41: 4657.76 | I41: 2020 | K41: 4657.76 | L41: *325,851 gallons X ac-ft
A42: *4" | E42: 3358.88 | F42: 2020 | G42: 5378.88 | I42: 2020 | K42: 5378.88
A45: * acre-foot = 325,851 gallons of water
A46: 3" and > | B46: Based on usage
B47: WPIF's = $4.66 x gpd of peak day demand
B48: RWR = Peak Annual Usage x 1.92 divided by 325,851 = ac-ft ac-ft required x $17,300 = cash in lieu
B49: WWPIF's = $13.96/ gpd of peak day discharge PLUS infiltration and inflow, based on domestic strength waste (BOD and TSS).
B50: Ratio of System I&I plus discharge to customer discharge: x 1.465
B51: SPIF = Site flow x[8.76 = (BOD x 0.0130) + (TSS x 0.0104)]+
B52: l & l flow x [8.76 + (200 mg/l x 0.0130) + (250 mg/l x 0.0104)]
B53: l & l flow x [8.76 + 2.60 + 2.60]
B54: 0.465 x flow x [13.96]
A56: Raw Water surcharge for usage above annual allotment = $8.14 / 1,000 gallons | H56: effective 01/01/18
A57: Conservation rate applies above 5 x average usage for that respective meter size.

Sheet pud calculation (hidden)
A1: PRELIMINARY | D1: ESCROW: | E1: 0
A2: ________________ W/WW
A3: Reviewer:
A4: B#
A6: PUD Name: | B6: name
A7: Address: | B7: address
C9: Basin:
A10: Site Acres: | C10: Rate:
A11: Site Sq. Ft | C11: ROC:
A12: # of Buildings
A13: Building Sq Ft
A14: ROW
A15: Parking/Drives/walks/patios
A16: Gravel
A17: Private O.S.
A18: Public O.S
A19: Gross: | B19: =SUM(B13:B18) -> 0
A20: % Impervious | B20: =SUM(B13+B14+B15)/B11 -> 
A21: % Gravel | B21: =+B16/B11 -> 
A22: % Pervious | B22: =(B17+B18)/B11 -> 
A23: Net Acres | B23: =B11-B14 -> 0
A24: Net % Impervious | B24: =SUM(B13+B15)/B23 -> 
A25: Net % Semi-pervious | B25: =+B16/B23 -> 
A26: Net % Pervious | B26: =SUM(B17+B18)/B23 -> 
A28: Cg | B28: =SUM(B20*0.95)+(B21*0.5)+(B22*0.2) -> 
A29: Cn | B29: =(B24*0.95)+(B25*0.05)+(B26*0.2) -> 
A31: Basin Rate: | B31: =8217/43560 -> 0.1886363636
A32: SW PIF: | B32: =B11*B28*B31 -> 
A33: Review Charge: | B33: =(1045/43560)*B23*$D$11 -> 0
A39: 2017 | B39: Stormwater Units Computation for CIS
A40: Residential | E40: Commercial
A42: Area in SF | B42: 21780 | E42: Area in SF | F42: 64420
A43: Runoff Coef | B43: 0.4 | E43: Runoff Coef | F43: 0.8
A45: Units | B45: =IF(B42>12000,((B42-12000)*B51+(12000*B50))/1000*B43/B50,B42*B43/1000) -> 5.778022469 | E45: Units | F45: =F42*F43/1000 -> 51.536
A48: Note: The residential units value is calculated based on Rate1 for the first 12000 SF and Rate 2 for area above 12000 SF.
A50: Res Rate 1 | B50: 0.0043527
A51: Res Rate 2 | B51: 0.0010882
